Cogmind - Beta 16.1 @@@ ROGUE MODE // 2026.03.30 @ 00:03:10 Player: the Result: Destroyed Tau Ceti IV! Performance ------------- Evolutions (9) 4500 Regions Visited (32) 6400 Robots Destroyed (427) 2135 Value Destroyed (22184) 22184 Prototype IDs (400) 8000 Alien Tech Used (10) 2000 Bonus (55669) 55669 TOTAL SCORE: 100888 Bonus ------- Triggered High Security 500 Triggered Max Security 4000 High Alert Combat Kills 4170 Follower Combat Kills 4255 Network Hubs Disabled 400 Aligned with FarCom 300 Met Data Miner 300 Met Imprinter 300 Was Imprinted 300 MAIN.C Attacked Warlord 500 Warlord Defense Kills 4426 Built Enhanced Grunts 300 Met R17 at Cetus 500 Used Core Reset Matrix 3000 Integrated Exoskeleton 5000 Destroyed MAIN.C Guards 500 Met MAIN.C 5000 Destroyed MAIN.C Shell 5000 Destroyed MAIN.C 10000 Met Architect 300 Started Test 138-B 500 Started Test 138-C 8000 Destroyed A8 300 Destroyed A6 400 Destroyed A5 500 Destroyed A4 700 Destroyed A2 1000 Win 3000 Friendly Fire -7782 Cogmind --------- Core Integrity 369/1600 Matter 550/550 Energy 1398/1400 System Corruption 1% Temperature Cool (0) Movement Walking (30) Location Subspace Parts ------- > --- POWER (1) -------- Matter Drive > --- PROPULSION (3) --- Sigix Exoskeleton > --- UTILITY (7) ------ Experimental Energy Well Experimental Energy Well Experimental Targeting Computer Experimental Core Analyzer Experimental Core Analyzer Experimental Weapon Cycler AEGIS Remote Shield > --- WEAPON (2) ------- Sigix Shearcannon > --- INVENTORY (5) ---- Experimental Energy Well (600) Experimental Targeting Computer Integrity Redistributor Spacefold Activator Peak State ------------ > --- POWER ------------ Matter Drive > --- PROPULSION ------- Sigix Exoskeleton > --- UTILITY ---------- Experimental Energy Well Experimental Targeting Computer Experimental Core Analyzer Experimental Core Analyzer Experimental Weapon Cycler Experimental System Purifier Spacefold Activator > --- WEAPON ----------- Sigix Shearcannon > --- INVENTORY -------- AEGIS Remote Shield High-powered Transdimensional Reconstructor Integrity Redistributor Sigix Sheargun Sigix Sheargun [Rating: 279] Favorites ----------- Power Cooled Fission Core Engine Hybrid Deuterium Engine Power Core Cooled Fission Core Reactor Quantum Reactor Propulsion Enhanced Flexi-carbon Leg Treads Light Treads Leg Enhanced Flexi-carbon Leg Wheel Wheel Utility High-capacity Storage Unit Device Improved Sensor Array Storage High-capacity Storage Unit Processor Advanced Signal Interpreter Hackware Improved System Shield Protection Medium Regenerative Plating Artifact Spacefold Activator Weapon High-powered Shock Rifle Energy Gun High-powered Shock Rifle Energy Cannon Neutron Cannon Ballistic Gun 8R-AWN's Boregun Launcher Rocket Launcher Special Weapon Advanced Remote Datajack Slashing Weapon Longsword +1 Special Melee Weapon Datajack Build | -11 -10 -10 -10 -9 -8 -7 -7 -7 -6 -6 -6 -6 -6 -5 -5 -5 -5 -5 -5 -4 -4 -4 -4 -3 -3 -3 -3 -2 -2 -1 -1 -1 ------- Run | Yrd Mat Min Exi Min Mat Fac Low Dat Pro Fac Low Low Zio Pro Fac Ext Cet Arc Hub Fac Upp Upp War Pro Res Qua Sec Res Tes Acc Com Ac0 Slots Evolved 18 | . . . . . 4 2 . . . 2 . . . . 2 . . . . 2 . . . . 2 . . 2 . 2 . . Power 1 | . . . . . . . . . . 1 . . . . . . . . . . . . . . . . . . . . . . Propulsion 4 | . . . . . 2 1 . . . . . . . . . . . . . . . . . . 1 . . . . . . . Utility 11 | . . . . . 2 . . . . 1 . . . . 2 . . . . 1 . . . . 1 . . 2 . 2 . . Weapon 2 | . . . . . . 1 . . . . . . . . . . . . . 1 . . . . . . . . . . . . Parts Attached 223 | 5 4 5 9 3 26 15 . 9 1 18 1 . . 2 11 4 7 3 14 7 . 4 12 1 6 13 8 16 4 2 12 1 Power 22 | . . 1 2 . 2 2 . . . 2 . . . . 3 . 2 . 2 1 . 1 2 . . 1 1 . . . . . Engine 5 | . . 1 2 . 1 . . . . 1 . . . . . . . . . . . . . . . . . . . . . . Core 8 | . . . . . 1 2 . . . 1 . . . . 3 . . . . 1 . . . . . . . . . . . . Reactor 9 | . . . . . . . . . . . . . . . . . 2 . 2 . . 1 2 . . 1 1 . . . . . Propulsion 40 | 2 2 . 2 2 11 5 . 3 . 1 . . . . 1 1 . . 4 2 . . 2 . 1 1 . . . . . . Treads 5 | . 2 . 2 . 1 . . . . . . . . . . . . . . . . . . . . . . . . . . . Leg 28 | 2 . . . . 5 5 . 3 . 1 . . . . 1 1 . . 4 2 . . 2 . 1 1 . . . . . . Wheel 7 | . . . . 2 5 . . . . . . . . . . . . . . . . . . . . . . . . . . . Hover . | . . . . . . . . . . . . . . . . . . . . . . . . . . . . . . . . . Flight . | . . . . . . . . . . . . . . . . . . . . . . . . . . . . . . . . . Utility 107 | 1 2 2 2 . 8 3 . 4 1 7 1 . . 2 3 2 2 3 6 3 . 2 5 1 4 7 4 16 4 2 10 . Device 63 | 1 1 1 . . 3 3 . 1 1 4 1 . . 1 1 1 . 3 4 3 . 2 2 1 3 7 2 10 4 . 3 . Storage 12 | . . . 2 . 1 . . 1 . . . . . 1 1 . . . . . . . . . . . 1 1 . . 4 . Processor 13 | . 1 . . . 3 . . . . 1 . . . . 1 . . . . . . . 3 . 1 . . . . 2 1 . Hackware 2 | . . . . . . . . . . . . . . . . . . . . . . . . . . . . . . . 2 . Protection 16 | . . 1 . . 1 . . 2 . 2 . . . . . 1 2 . 2 . . . . . . . . 5 . . . . Artifact 1 | . . . . . . . . . . . . . . . . . . . . . . . . . . . 1 . . . . . Weapon 54 | 2 . 2 3 1 5 5 . 2 . 8 . . . . 4 1 3 . 2 1 . 1 3 . 1 4 3 . . . 2 1 Energy Gun 10 | . . . . . . 3 . . . 3 . . . . . . 1 . . . . 1 . . . . 2 . . . . . Energy Cannon 7 | . . . . . . . . 2 . . . . . . . . . . 1 . . . 1 . 1 . 1 . . . . 1 Ballistic Gun 26 | 2 . 1 2 . 3 2 . . . 4 . . . . 3 1 2 . . 1 . . 1 . . 4 . . . . . . Ballistic Cannon . | . . . . . . . . . . . . . . . . . . . . . . . . . . . . . . . . . Launcher 7 | . . . 1 . 2 . . . . 1 . . . . 1 . . . 1 . . . 1 . . . . . . . . . Special Weapon 1 | . . . . . . . . . . . . . . . . . . . . . . . . . . . . . . . 1 . Impact Weapon . | . . . . . . . . . . . . . . . . . . . . . . . . . . . . . . . . . Slashing Weapon 1 | . . . . 1 . . . . . . . . . . . . . . . . . . . . . . . . . . . . Piercing Weapon . | . . . . . . . . . . . . . . . . . . . . . . . . . . . . . . . . . Special Melee Weapon 2 | . . 1 . . . . . . . . . . . . . . . . . . . . . . . . . . . . 1 . Unidentified Prototypes 41 | . . 1 . . . 1 . 4 1 . . . . . 2 1 6 . 5 1 . 2 8 . . 4 1 3 1 . . . Corrupted Parts 3 | . . . . . . . . . . . . . . . . . 2 . 1 . . . . . . . . . . . . . System Corruption 20 | . . . . . . . . . . . . . . . . . 10 . 10 . . . . . . . . . . . . . Parts Lost 13 | . . . 1 . 3 1 . 2 . . . . . 1 . . . . 2 1 . . . . 2 . . . . . . . Power 1 | . . . 1 . . . . . . . . . . . . . . . . . . . . . . . . . . . . . Propulsion 5 | . . . . . 2 1 . 1 . . . . . . . . . . 1 . . . . . . . . . . . . . Utility 6 | . . . . . 1 . . 1 . . . . . . . . . . 1 1 . . . . 2 . . . . . . . Weapon 1 | . . . . . . . . . . . . . . 1 . . . . . . . . . . . . . . . . . . Highest Loss Streak 2 | . . . 1 . 2 1 . 2 . . . . . 1 . . . . 1 1 . . . . 2 . . . . . . . To Critical Strikes 1 | . . . 1 . . . . . . . . . . . . . . . . . . . . . . . . . . . . . Average Backups 14 | 2 4 5 12 27 21 15 16 9 16 15 16 15 15 15 15 16 15 16 15 16 15 16 15 16 15 17 14 8 8 7 5 4 Power . | . 1 . . 1 1 1 1 . 1 . . . . . . 1 1 1 1 1 2 2 . 1 1 . . . . . . . Propulsion 1 | 1 2 2 4 10 5 . . . 1 . 1 1 1 1 1 1 . . . . . . . 1 . . . . . . . . Utility 7 | . 1 . 4 11 9 7 7 6 10 9 9 8 8 9 7 7 8 9 9 10 10 10 8 10 9 12 10 5 6 4 1 3 Weapon 4 | . . 1 2 4 5 7 8 1 4 5 6 6 5 5 6 7 6 6 4 4 3 3 4 3 4 4 2 1 . 1 1 . Tool/Special . | . . . . . . . . . . . . . . . . . . . . . . . . . . . . . . . . . Unused Backups 60 | . 1 5 6 1 7 2 . 11 1 2 . . . . 1 . . . 3 2 . . 2 . 2 . 2 . 7 2 1 2 Power 8 | . . 1 3 . 1 1 . . . . . . . . . . . . . . . . 1 . . . . . 1 . . . Propulsion 7 | . . 3 . 1 3 . . . . . . . . . . . . . . . . . . . . . . . . . . . Utility 35 | . 1 . 3 . 3 1 . 9 1 1 . . . . . . . . 2 2 . . . . 2 . 1 . 6 2 . 1 Weapon 6 | . . 1 . . . . . 2 . 1 . . . . 1 . . . 1 . . . . . . . . . . . . . Tool/Special 4 | . . . . . . . . . . . . . . . . . . . . . . . 1 . . . 1 . . . 1 1 Average Slot Usage (%) 91 | . 81 86 92 85 94 98 100 93 100 98 100 100 98 98 97 100 100 99 99 83 84 83 86 88 84 87 85 77 80 83 77 76 Engine 3 | . . 1 11 14 6 . . . . 6 6 6 6 6 4 . . . . . . . . . . . . . . . . . Core 3 | . . . . . 2 6 7 7 7 6 6 6 6 6 5 11 11 11 10 5 5 5 4 . . . . . . . . . Reactor 2 | . . . . . . . . . . . . . . . . . . . . 5 5 5 5 10 9 5 5 9 9 7 7 7 Treads 5 | . 6 28 28 15 . . . . . . . . . . . . . . . . . . . . . . . . . . . . Leg 21 | . 21 . . . 20 36 38 37 38 32 33 33 33 33 29 29 29 29 28 26 26 26 26 26 28 27 23 9 9 7 7 7 Wheel 1 | . . . . 12 14 . . . . . . . . . . . . . . . . . . . . . . . . . . . Device 14 | . 14 14 8 . 8 9 7 5 7 12 19 19 20 20 20 17 17 16 15 15 21 20 20 15 18 18 18 21 17 15 14 15 Storage 7 | . . . 12 14 9 7 7 7 7 6 6 6 6 6 5 5 5 5 5 5 5 5 5 5 4 4 5 11 18 15 12 15 Processor 8 | . 11 4 . . 9 7 7 7 7 6 6 6 6 6 10 11 11 11 11 10 10 10 10 10 13 14 7 . . 14 22 23 Protection 3 | . . 9 1 . 3 5 7 8 7 6 . . . . 1 5 5 5 6 9 5 5 5 5 4 4 3 . . . . . Energy Gun 3 | . . . . . . 12 23 . . 1 18 18 17 16 5 . . . . . . . . . . . 5 18 18 15 2 . Energy Cannon 1 | . . . . . . . . . 15 4 . . . 1 1 . . . . . . . 1 4 . . . . . . 4 7 Ballistic Gun 10 | . 28 17 24 5 8 7 . 9 . 11 . . . . 7 16 15 16 14 5 4 4 4 5 3 9 10 . . . . . Slashing Weapon 1 | . . . . 8 5 2 . 5 . . . . . . . . 1 . . . . . . 1 . . . . . . . . Peak Build Rating 279 | 5 6 12 49 36 61 75 67 92 91 100 100 100 97 99 117 118 118 122 136 152 150 152 158 162 174 179 231 250 250 266 279 273 Average Rating 109 | 3 5 7 29 32 49 69 67 75 87 94 94 96 93 94 110 114 114 119 123 149 149 149 148 158 168 169 184 244 248 265 268 271 On Entrance 118 | . 5 6 9 43 29 56 67 67 91 86 97 100 94 95 99 115 112 118 118 136 150 150 151 158 158 162 162 231 250 250 266 273 Avg Prop Armor Cover (%) 28 | 23 24 30 27 . . . . 4 . . . . . . . . . . . . . . . . . . . . . . . . Naked Turns 2 | . . . . . . . . . . . . . . . . . . . . . . . . . . . 2 . . . . . Heaviest Build 251 | 3 3 9 216 210 251 82 76 91 92 104 100 91 80 82 100 116 117 124 112 108 108 116 135 133 120 124 131 59 59 58 67 59 Greatest Support 178 | 10 3 40 40 40 90 118 110 144 144 144 142 142 142 142 142 142 141 141 148 148 146 146 148 148 178 178 178 60 60 60 60 60 Greatest Overweight (x) 20 | . . 2 5 20 7 . . 1 . . . . . . . . . . . . . . . . . . 1 . . . 1 . Average Overweight (x) . | . . . . 8 1 . . . . . . . . . . . . . . . . . . . . . . . . . . . Largest Inventory Capacity 35 | 5 5 5 35 35 35 20 20 20 20 20 20 20 20 20 20 20 20 20 20 20 20 20 20 20 20 20 20 10 10 10 10 5 Average Capacity 18 | 5 5 5 18 35 26 20 20 20 20 20 20 20 20 20 20 20 20 20 20 20 20 20 20 20 20 20 17 10 10 10 7 5 Most Carried 35 | 4 5 5 35 35 35 20 20 20 20 20 20 20 20 20 20 20 20 20 20 20 19 20 20 20 20 20 20 10 10 9 10 5 Average Carried 17 | 2 4 4 13 31 25 19 20 10 19 19 20 19 19 19 19 19 19 20 19 19 18 19 17 19 18 19 15 9 9 8 5 4 Final Capacity 35 | 5 5 5 35 35 20 20 20 20 20 20 20 20 20 20 20 20 20 20 20 20 20 20 20 20 20 20 10 10 10 10 5 5 Final Carried 34 | 4 5 5 29 34 20 20 20 20 20 20 20 19 20 19 20 20 20 20 20 19 19 20 20 20 20 20 10 10 10 9 5 4 Class Distribution -------------------- 30% | Scavenger-Skirmisher 15% | Mutant 10% | Hauler-Mutant 9% | Alien-Sigix 7% | Scavenger-Tank 6% | Scavenger-Mutant 5% | Commander-Skirmisher 5% | Scavenger-Gunner Dominant Class ---------------- Mutant | -10/Materials Mutant | -10/Mines Mutant | -10/Exiles Hauler-Mutant | -9/Mines Hauler-Mutant | -8/Materials Skirmisher | -7/Factory Skirmisher | -7/Lower Caves Mutant | -7/Data Miner Scavenger-Skirmisher | -6/Proximity Caves Scavenger-Skirmisher | -6/Factory Scavenger-Skirmisher | -6/Lower Caves Scavenger-Skirmisher | -6/Lower Caves Scavenger-Skirmisher | -6/Zion Scavenger-Skirmisher | -5/Proximity Caves Scavenger-Tank | -5/Factory Scavenger-Tank | -5/Extension Commander-Tank | -5/Cetus Commander-Skirmisher | -5/Archives Scavenger-Skirmisher | -5/Hub_04(d) Scavenger-Skirmisher | -4/Factory Scavenger-Skirmisher | -4/Upper Caves Scavenger-Skirmisher | -4/Upper Caves Scavenger-Skirmisher | -4/Warlord Scavenger-Gunner | -3/Proximity Caves Scavenger-Skirmisher | -3/Research Scavenger-Skirmisher | -3/Quarantine Scavenger-Gunner | -3/Section 7 Alien-Sigix | -2/Research Alien-Sigix | -2/Testing Alien-Sigix | -1/Access Alien-Sigix | -1/Command Alien-Sigix | -1/Access_0 Resources | -11 -10 -10 -10 -9 -8 -7 -7 -7 -6 -6 -6 -6 -6 -5 -5 -5 -5 -5 -5 -4 -4 -4 -4 -3 -3 -3 -3 -2 -2 -1 -1 -1 ----------- Run | Yrd Mat Min Exi Min Mat Fac Low Dat Pro Fac Low Low Zio Pro Fac Ext Cet Arc Hub Fac Upp Upp War Pro Res Qua Sec Res Tes Acc Com Ac0 Matter Collected 16677 | 139 146 123 1073 362 1062 604 . 350 177 599 500 131 . 229 455 379 322 422 981 1828 80 585 861 291 1558 1238 1419 233 . . 490 40 Remotely 4221 | . . . . . . . . . . . . . . . . . . . 493 497 . 253 791 . 1335 455 397 . . . . . Salvage Created 25990 | 24 104 106 668 336 1779 1051 . 421 223 699 225 33 . 801 713 582 90 334 1404 2205 88 195 1697 367 1940 1477 1813 233 . . 3176 3206 Parts 1333 | 3 8 11 78 31 107 66 . 27 7 40 10 1 . 30 40 29 4 29 61 97 5 12 77 7 82 76 89 8 . . 89 209 Haulers Intercepted 17 | . . . . . 6 2 . . 1 . . . . . 1 . . . 3 2 . . . . . . 1 1 . . . . Recyclers Shooed 11 | . . . . 1 4 1 . . . 2 . . . . . 1 . . . . . . . . 2 . . . . . . . Parts Field Recycled . | . . . . . . . . . . . . . . . . . . . . . . . . . . . . . . . . . Retrieved Matter . | . . . . . . . . . . . . . . . . . . . . . . . . . . . . . . . . . Parts Self-Destructed 58 | . . . . . . . . . 11 . 4 1 . 22 . . . . . . 5 14 . 1 . . . . . . . . Prevented 24 | . . . . . . . . . . . 8 . . 10 . . . . . . . . . 6 . . . . . . . . Parts Restored 1 | . . . . . . 1 . . . . . . . . . . . . . . . . . . . . . . . . . . Broken 1 | . . . . . . 1 . . . . . . . . . . . . . . . . . . . . . . . . . . Kills | -11 -10 -10 -10 -9 -8 -7 -7 -7 -6 -6 -6 -6 -6 -5 -5 -5 -5 -5 -5 -4 -4 -4 -4 -3 -3 -3 -3 -2 -2 -1 -1 -1 ------- Run | Yrd Mat Min Exi Min Mat Fac Low Dat Pro Fac Low Low Zio Pro Fac Ext Cet Arc Hub Fac Upp Upp War Pro Res Qua Sec Res Tes Acc Com Ac0 Combat Hostiles Destroyed 321 | . 3 . 6 8 25 15 . 4 10 13 14 1 . 8 12 4 . . 14 17 11 5 31 1 27 18 19 . . . 21 34 Melee 18 | . . . . . 9 8 . . . 1 . . . . . . . . . . . . . . . . . . . . . . Guns 152 | . 3 . 3 2 10 7 . 4 . 3 2 . . . 11 4 . . 11 16 . 1 16 . 27 17 15 . . . . . Cannons 66 | . . . . . . . . . 1 5 . 1 . . . . . . . . . 2 . . . 1 2 . . . 21 33 AOE 73 | . . . 3 6 6 . . . 9 4 11 . . 5 . . . . 3 . 11 . 15 . . . . . . . . . Classes Destroyed 29 | 1 2 2 4 1 4 2 . . . 1 . . . 2 . . . . . 1 . 1 4 1 2 . 1 . . . . . Worker 25 | . . 1 . 2 8 2 . . . 2 . . . . . 1 . . 3 5 . . . . . . 1 . . . . . Builder 10 | . . . . 1 2 3 . . . 1 . . . . 1 . . . 2 . . . . . . . . . . . . . Tunneler 7 | 1 . 1 . 3 1 . . . . . . . . . . . . . . 1 . . . . . . . . . . . . Hauler 17 | . . . . . 6 2 . . 1 . . . . . 1 . . . 3 2 . . . . . . 1 1 . . . . Recycler 22 | . 1 . . 2 1 1 . . . 2 . . . . . 2 . . . 6 . . . . 3 2 1 1 . . . . Operator 14 | . . . . . . . . . . 1 . . . . . . . 7 2 1 . . . . . 1 . . . . 2 . Drone 3 | . . . 1 . . . . . 2 . . . . . . . . . . . . . . . . . . . . . . . Turret 1 | . . . 1 . . . . . . . . . . . . . . . . . . . . . . . . . . . . . Watcher 13 | . . . . . 4 . . . . 2 . . . . . . . . 1 1 . . . . 1 2 1 . . . 1 . Swarmer 64 | . 3 . . 7 6 1 . . 3 7 . . . 5 4 . . . . 3 3 . 2 . 14 4 . . . . 2 . Saboteur 1 | . . . . . . . . . . . . . . . . . . . . . . . 1 . . . . . . . . . Grunt 78 | . . . . 1 13 8 . . 5 1 2 . . . 3 . . . 3 7 . . 18 . 7 4 5 . . . 1 . Brawler 4 | . . . . . 1 1 . . . . 1 . . . . . . . . . . . 1 . . . . . . . . . Duelist 2 | . . . . . . . . . . . . . . . . . . . . . . . . . 1 1 . . . . . . Protector 2 | . . . . . . . . . . . . . . 1 . . . . 1 . . . . . . . . . . . . . Researcher 4 | . . . . . . . . . . . . . . . . . . . . . . . . . . . 4 . . . . . Sentry 24 | . . . . . 5 1 . . . 2 . . . 1 1 3 . . 1 2 . . . 1 2 4 . . . . 1 . Demolisher 3 | . . . . . . . . . . . . . . 1 . . . . . . . . 2 . . . . . . . . . Hunter 12 | . . . . . . 2 . . . . . . . . . 1 . . 3 . . 1 1 . . . 4 . . . . . Programmer 33 | . . . . . . 2 . . . 3 . 1 . . 4 . . . 3 4 . . 2 . 2 5 5 . . . 2 . Heavy 2 | . . . . . . . . . . . . . . . . . . . . . . . . . 1 . . . . . 1 . Behemoth 2 | . . . . . . . . . . . . . . . . . . . . 1 . . . . . . . . . . 1 . M Guard 2 | . . . . . . . . . . . . . . . . . . . . . . . . . . . . . . . 2 . M Shell/Atk 3 | . . . . . . . . . . . . . . . . . . . . . . . . . . . . . . . 3 . M Shell/Def 4 | . . . . . . . . . . . . . . . . . . . . . . . . . . . . . . . 4 . Enhanced Grunt 28 | . . . . . . . . 4 . . . . . . . . . . . . . . . . . . . . . . . 24 Enhanced Sentry 1 | . . . . . . . . . . . . . . . . . . . . . . . . . . . . . . . . 1 Enhanced Hunter 4 | . . . . . . . . . . . . . . . . . . . . . . . . . . . . . . . . 4 Lightning 3 | . . . . . . . . . . . . . . . . . . . 3 . . . . . . . . . . . . . Combat Programmer 2 | . . . . . . . . . . . . . . . . . . . . . . . . . . . . . . . 2 . Striker 4 | . . . . . . . . . . . . . . . . . . . . . . . 1 . . . 3 . . . . . Executioner 5 | . . . . . . . . . . . . . . . . . . . . . . . 3 . . . 2 . . . . . Zionite 7 | . . . 7 . . . . . . . . . . . . . . . . . . . . . . . . . . . . . Decomposer 2 | . . . . . . . . . . . . . . . . . . . . . . 2 . . . . . . . . . . Samaritan 2 | . . . . . . . . . . . . . . . . . . . . . . . . 2 . . . . . . . . Master Thief 4 | . . . . . . . . . . . . . . . . . . . . . . 4 . . . . . . . . . . Assembled 30 | . . . 5 . . . . . . . 11 . . . . . . . . . 8 . . . . . . . . . 6 . Surgeon 1 | . . . . . . . . . . . . . . . . . . . . . . . 1 . . . . . . . . . Thug 3 | . . 1 . . . . . . . . . . . . . . . . . . . . 2 . . . . . . . . . Savage 1 | . . . . . . . . . . . . . . . . . . 1 . . . . . . . . . . . . . . Commander 2 | . . . . . . . . . . . . . . . . . . . . . . . 2 . . . . . . . . . Best Kill Streak 14 | 1 3 1 4 7 7 4 . 1 5 6 11 1 . 5 6 2 . 4 7 7 8 4 9 1 14 7 6 2 . . 7 10 Combat Bots Only 13 | . 2 . 4 4 4 3 . 1 5 4 11 1 . 5 5 2 . . 3 6 8 4 9 1 13 7 4 . . . 7 10 Max Kills in Single Turn 8 | 1 1 1 2 3 4 2 . 1 2 2 2 1 . 4 3 2 1 1 3 3 8 1 5 1 2 1 2 1 . . 2 3 Gunslinging 1 | . . . . . . . . . . . . . . . 1 . . . . . . . . . . . . . . . . . Exploded 8 | . . . 2 3 3 . . . 2 2 2 . . 4 . . . . 3 . 8 . 4 . . . . . . . . . Melee 1 | . . . . . 1 1 . . . 1 . . . . . . . . . . . . . . . . . . . . . . Uniques/NPCs Destroyed 12 | . . . 4 . . . . . . . . . . . . . 1 . . . . . . . . . . . . . 2 5 8R-AWN (-10/Exiles) EX-BIN (-10/Exiles) EX-DEC (-10/Exiles) EX-HEX (-10/Exiles) A7 (-5/Cetus) MAIN.C Shell (-1/Command) MAIN.C (-1/Command) A8 (-1/Access_0) A6 (-1/Access_0) A2 (-1/Access_0) A5 (-1/Access_0) A4 (-1/Access_0) Combat | -11 -10 -10 -10 -9 -8 -7 -7 -7 -6 -6 -6 -6 -6 -5 -5 -5 -5 -5 -5 -4 -4 -4 -4 -3 -3 -3 -3 -2 -2 -1 -1 -1 -------- Run | Yrd Mat Min Exi Min Mat Fac Low Dat Pro Fac Low Low Zio Pro Fac Ext Cet Arc Hub Fac Upp Upp War Pro Res Qua Sec Res Tes Acc Com Ac0 Hostile Shots Fired 1548 | . 21 2 10 16 91 109 . 20 19 162 17 6 . 12 48 29 2 4 61 55 2 11 35 4 72 84 148 14 2 2 141 349 Missed 558 | . 8 1 3 3 28 41 . 5 4 51 5 1 . 2 21 6 . . 15 17 . 7 13 1 20 31 63 5 1 1 50 155 Hits 990 | . 13 1 7 13 63 68 . 15 15 111 12 5 . 10 27 23 2 4 46 38 2 4 22 3 52 53 85 9 1 1 91 194 Melee 20 | . . . 1 . . 3 . . . . . . . . . . . . . . . 2 . . . 1 5 2 . . . 6 Projectile 970 | . 13 1 6 13 63 65 . 15 15 111 12 5 . 10 27 23 2 4 46 38 2 2 22 3 52 52 80 7 1 1 91 188 AOE 15 | . . . . . . . . . . . . . . 7 . . . . . . . . 1 . . . . 2 . . 5 . Critical Strikes 53 | . . . 1 . 2 3 . . 1 3 . . . . 4 1 . . 4 2 . . . . . 2 8 3 . . 5 14 Actively Blocked 7 | . . . . . . . . . . . . . . . . . . . 2 . . . . . . . . . . . 5 . Part Disruptions 7 | . . . . . . . . 3 . . . . . . . . . . 1 . . . . . 1 1 . . . . 1 . Actively Blocked 1 | . . . . . . . . . . . . . . . . . . . 1 . . . . . . . . . . . . . Damage Taken 13237 | . 103 18 195 160 958 841 . 695 255 610 78 37 . 302 250 268 27 50 1134 635 14 23 235 43 828 765 1201 234 65 23 1672 1518 Core 2677 | . 29 . . 49 73 59 . 50 62 71 21 . . 12 18 33 9 . 134 91 . 5 17 . 25 57 488 179 60 7 625 503 Absorbed by Shields 6864 | . . . . . . . . . . 397 81 39 . 181 262 281 30 52 373 451 15 25 245 44 659 625 891 84 7 22 671 1429 Redirected to Shielding 194 | . . . . . . . . . . . . . . . . . . . 54 140 . . . . . . . . . . . . Ignored by Resistances 6035 | . . . . . . . . . . 54 18 . . . 39 32 17 7 . . . . . . . . 378 166 14 46 2225 3039 Regen/Repaired (Parts) 1821 | . . . . . 196 . . . . 295 . . . . 195 . 44 205 201 165 . . 56 . 155 213 96 . . . . . Core Remaining (%) 74 | 100 . . . 68 86 . . . 75 . . . . 87 . . . . 80 . . . . 90 . . 56 . 83 . . 23 Volleys Fired 1305 | 10 11 11 80 24 86 36 . 20 52 82 18 5 . 29 25 32 24 27 60 93 4 30 58 22 80 61 83 6 10 6 109 111 Largest 4 | 2 2 2 2 1 2 3 . 2 2 3 3 1 . 3 3 3 3 3 3 1 1 1 1 1 1 4 4 2 2 1 2 1 Hottest 200 | 40 40 43 60 30 56 183 . 60 180 150 180 90 . 180 120 99 99 101 101 60 46 70 60 70 100 160 200 200 200 100 200 180 Shots Fired 1973 | 20 22 16 153 24 143 107 . 25 59 126 32 6 . 49 64 67 37 32 147 93 4 31 58 22 80 107 199 11 12 6 110 111 Gun 1513 | 20 22 16 149 21 140 107 . 25 . 59 21 1 . 47 64 52 37 32 144 93 . 20 49 . 77 102 174 11 12 6 12 . Cannon 406 | . . . . . . . . . 48 61 . 5 . . . 15 . . 2 . . 11 . 22 3 5 25 . . . 98 111 Launcher 54 | . . . 4 3 3 . . . 11 6 11 . . 2 . . . . 1 . 4 . 9 . . . . . . . . . Special . | . . . . . . . . . . . . . . . . . . . . . . . . . . . . . . . . . Kinetic 1313 | 20 22 16 149 21 140 72 . 25 . 59 . . . 12 45 52 37 32 144 93 . 20 49 . 77 102 126 . . . . . Thermal 164 | . . . . . . 35 . . 48 61 . 5 . . . 15 . . . . . . . . . . . . . . . . Explosive 45 | . . . 4 3 3 . . . 11 6 11 . . 2 . . . . 1 . 4 . . . . . . . . . . . Electromagnetic 134 | . . . . . . . . . . . 21 1 . 35 19 . . . 2 . . 11 . 22 . . 18 . . . . 5 Slashing 296 | . . . . . . . . . . . . . . . . . . . . . . . . . . . 51 11 12 6 110 106 Entropic 21 | . . . . . . . . . . . . . . . . . . . . . . . 9 . 3 5 4 . . . . . Robot Hit Streak 46 | 4 3 3 9 12 8 6 . 11 12 7 5 2 . 20 15 11 19 9 13 19 . 10 15 23 25 23 18 7 . . 46 21 Robot Miss Streak 11 | 2 4 2 4 2 4 5 . 1 3 5 3 1 . 4 1 2 5 2 5 7 . 2 3 . 5 5 11 1 . . 9 8 Penetration Max 2 | . . . 1 1 2 . . . . 1 . . . 2 1 1 1 . 1 . . . 2 . . 1 1 . . . 1 1 Secondary Targets 9 | . . . 1 . . . . . . . 1 . . . 2 . . . . . . . . . . 2 3 . . . . . Max Gunslinging Chain 1 | . . . 1 . . . . . . . 1 . . . 1 . . . . . . . . . . 1 1 . . . . . Capacitor 49 | . . . . . . . . . . . . . . . . . . . . . . 9 . 22 . . 18 . . . . . Shots Hit Robots 1339 | 11 10 15 93 20 123 78 . 21 12 62 13 3 . 34 47 41 41 23 88 64 . 21 38 10 73 74 136 6 . . 80 102 Core Hits 1083 | 2 6 4 39 14 53 33 . 6 24 32 25 1 . 26 24 24 14 13 50 62 12 13 55 4 73 56 53 3 . . 168 194 Critical Kills 55 | . 1 1 6 1 4 . . 4 . . . . . 4 1 1 . 7 12 . . . 13 . . . . . . . . . Critical Parts Destroyed 63 | . 1 . 17 3 1 1 . 4 . . . . . 6 . 1 4 4 13 . . . 8 . . . . . . . . . Critical Strikes 167 | . 2 1 33 4 11 3 . 11 . . . . . 11 2 3 6 11 26 . . 2 21 4 . . 4 . . . 4 8 Burn 1 | . . . . . . 1 . . . . . . . . . . . . . . . . . . . . . . . . . . Destroy 133 | . 2 1 33 4 6 1 . 11 . . . . . 10 1 3 4 11 25 . . . 21 . . . . . . . . . Corrupt 12 | . . . . . . . . . . . . . . 1 1 . . . 1 . . 2 . 4 . . 3 . . . . . Sever 20 | . . . . . 5 1 . . . . . . . . . . 2 . . . . . . . . . . . . . 4 8 Sunder 1 | . . . . . . . . . . . . . . . . . . . . . . . . . . . 1 . . . . . Melee Attacks 246 | . . 6 5 4 70 33 . 27 . 8 . . 1 . 12 3 26 . 4 1 . . 6 10 6 3 17 . . . 4 . Impact . | . . . . . . . . . . . . . . . . . . . . . . . . . . . . . . . . . Slashing 231 | . . . . 4 70 33 . 27 . 8 . . 1 . 12 3 26 . 4 1 . . 6 10 6 3 17 . . . . . Piercing . | . . . . . . . . . . . . . . . . . . . . . . . . . . . . . . . . . Sneak Attacks 53 | . . 6 5 4 14 1 . 1 . 1 . . . . 1 . 16 . . . . . . . . . . . . . 4 . Combat Hostiles 1 | . . . . . 1 . . . . . . . . . . . . . . . . . . . . . . . . . . . Follow-up Attacks . | . . . . . . . . . . . . . . . . . . . . . . . . . . . . . . . . . Damage Inflicted 86360 | 86 82 113 1766 1007 4533 2014 . 519 1403 2633 1016 137 . 1083 1338 1426 1875 468 3065 5032 1355 1102 8600 404 4691 3981 4768 332 . . 16561 14970 Guns 31865 | 86 82 101 1623 298 1266 1111 . 405 . 705 247 . . 750 1197 1389 791 468 2341 4702 . 724 1478 . 4691 3522 3476 332 . . 80 . Cannons 35466 | . . . . . . . . . 374 1037 . 137 . . . . . . 103 . . 334 . 404 . 382 1244 . . . 16481 14970 Explosions 13085 | . . . 143 355 424 . . . 1029 590 769 . . 333 . . . . 621 300 1355 44 7122 . . . . . . . . . Melee 5667 | . . . . 354 2807 903 . 114 . 264 . . . . 141 . 1084 . . . . . . . . . . . . . . . Ramming 277 | . . 12 . . 36 . . . . 37 . . . . . 37 . . . 30 . . . . . 77 48 . . . . . Kinetic 28581 | 86 82 101 1623 298 1266 675 . 405 . 705 . . . 279 858 1389 791 468 2341 4702 . 724 1478 . 4691 3522 2097 . . . . . Thermal 3020 | . . . . . . 436 . . 374 1037 97 137 . . . . . . . 300 595 44 . . . . . . . . . . Explosive 4664 | . . . 143 355 424 . . . 1029 590 672 . . 304 . . . . 387 . 760 . . . . . . . . . . . Electromagnetic 3103 | . . . . . . . . . . . 247 . . 500 339 . . . 337 . . 334 . 404 . . 800 . . . . 142 Impact . | . . . . . . . . . . . . . . . . . . . . . . . . . . . . . . . . . Slashing 38984 | . . . . 354 2807 903 . 114 . 264 . . . . 141 . 1084 . . . . . . . . . 1596 332 . . 16561 14828 Piercing . | . . . . . . . . . . . . . . . . . . . . . . . . . . . . . . . . . Entropic 7731 | . . . . . . . . . . . . . . . . . . . . . . . 7122 . . 382 227 . . . . . Highest Corruption 25 | . . . . . . . . . . 5 5 6 6 . 3 3 13 13 25 3 3 3 3 . 8 12 4 . . . 6 1 Average Corruption 4 | . . . . . . . . . . 4 5 5 6 . 2 3 9 9 11 2 3 3 3 . 1 9 3 . . . 5 1 Corruption Purged 19 | . . . . . . . . . . . . . . . . . . 13 . . . . . . . . . . . . 6 . Corruption Blocked . | . . . . . . . . . . . . . . . . . . . . . . . . . . . . . . . . . Effects 204 | . . . . . . . . . . 13 23 19 1 . 6 19 16 9 12 7 3 16 . . 1 32 17 . . . 10 . Message Errors 40 | . . . . . . . . . . 4 7 4 1 . 1 4 4 1 2 1 . 2 . . 1 7 1 . . . . . Matter Fused 56 | . . . . . . . . . . 1 6 4 . . 2 5 4 2 2 3 1 7 . . . 11 5 . . . 3 . Heat Flow Errors 24 | . . . . . . . . . . 1 2 3 . . 1 2 4 2 2 . . . . . . 3 1 . . . 3 . Energy Discharges 20 | . . . . . . . . . . 2 3 2 . . . 3 1 . 2 . 1 2 . . . 1 2 . . . 1 . Parts Rejected 7 | . . . . . . . . . . . . . . . . . . 1 . . . 1 . . . 3 1 . . . 1 . Parts Fused 2 | . . . . . . . . . . . . . . . . 1 . . . . . . . . . . 1 . . . . . Data Loss (minor) 27 | . . . . . . . . . . 1 3 3 . . 2 3 1 1 2 1 1 2 . . . 4 2 . . . 1 . Data Loss (major) 10 | . . . . . . . . . . 2 . 2 . . . . . 1 . 2 . 1 . . . 1 1 . . . . . Misfires 7 | . . . . . . . . . . 1 . 1 . . . 1 . . . . . 1 . . . 1 2 . . . . . Alerts 4 | . . . . . . . . . . . 2 . . . . . 1 . . . . . . . . 1 . . . . . . Weapon Failures 7 | . . . . . . . . . . 1 . . . . . . 1 1 2 . . . . . . . 1 . . . 1 . Overload Shots . | . . . . . . . . . . . . . . . . . . . . . . . . . . . . . . . . . Overflow Damage 2170 | . . . . 156 349 36 . . 60 82 83 3 . . . 7 158 . 33 73 340 21 308 . . 91 41 . . . 139 190 Projectiles 573 | . . . . . . . . . 37 35 . 3 . . . . . . 33 . . 21 . . . 91 24 . . . 139 190 Explosions 851 | . . . . 8 14 . . . 23 2 83 . . . . . . . . 73 340 . 308 . . . . . . . . . Melee 746 | . . . . 148 335 36 . . . 45 . . . . . 7 158 . . . . . . . . . 17 . . . . . Knockbacks 4 | . . . . . . . . . . . . . . . . 1 . . . 1 . . . . . 2 . . . . . . Impact 4 | . . . . . . . . . . . . . . . . 1 . . . 1 . . . . . 2 . . . . . . Kinetic . | . . . . . . . . . . . . . . . . . . . . . . . . . . . . . . . . . Secondary . | . . . . . . . . . . . . . . . . . . . . . . . . . . . . . . . . . Self-Inflicted Damage 148 | . . 6 9 39 . . . . . . . . . . . . . . 94 . . . . . . . . . . . . . Shots 3 | . . . 1 1 . . . . . . . . . . . . . . 1 . . . . . . . . . . . . . Rammed 1 | . . 1 . . . . . . . . . . . . . . . . . . . . . . . . . . . . . . Targets Rammed 20 | . . 1 . . 4 . . . . 5 . . . . . 1 . . . 4 . . . . . 3 2 . . . . . Kicked 19 | . . . . . 4 . . . . 5 . . . . . 1 . . . 4 . . . . . 3 2 . . . . . Crushed . | . . . . . . . . . . . . . . . . . . . . . . . . . . . . . . . . . Highest Temperature 396 | . . . 2 2 88 396 . 30 263 379 313 192 . 72 372 260 260 124 185 246 . 109 69 230 134 167 140 36 . . 209 16 Average Temperature 71 | . . . 1 2 25 91 . 14 82 103 103 94 . 30 53 78 80 51 61 32 . 45 14 88 48 44 43 36 . . 36 10 Received Heat Transfer 1590 | . . 6 . 30 504 216 . . 82 114 16 . . 8 58 53 4 8 45 63 . . 12 4 45 17 20 8 4 . 133 140 Siege Activations . | . . . . . . . . . . . . . . . . . . . . . . . . . . . . . . . . . Martial Activations . | . . . . . . . . . . . . . . . . . . . . . . . . . . . . . . . . . Shielding Activations . | . . . . . . . . . . . . . . . . . . . . . . . . . . . . . . . . . Robots Disrupted . | . . . . . . . . . . . . . . . . . . . . . . . . . . . . . . . . . Combat Hostiles . | . . . . . . . . . . . . . . . . . . . . . . . . . . . . . . . . . Robots Corrupted 15 | . . . . . 1 . . . . . 1 . . 4 1 . . . . . . 2 . 2 . . 3 . . . . 1 Combat Hostiles 11 | . . . . . . . . . . . 1 . . 3 1 . . . . . . 2 . 1 . . 2 . . . . 1 Parts Fried 48 | . . . . . . . . . . . . . . 13 1 . . . 2 1 . 9 1 2 . . 11 . . . . 8 Impact Corruptions 4 | . . . . . 1 . . . . . . . . . . 1 . . . . . . . . . 1 1 . . . . . Robots Melted . | . . . . . . . . . . . . . . . . . . . . . . . . . . . . . . . . . Combat Hostiles . | . . . . . . . . . . . . . . . . . . . . . . . . . . . . . . . . . Parts Melted 8 | . . . . . . 1 . . . . . . . . 3 1 . . 2 . . . 1 . . . . . . . . . Heat Transferred 1889 | . . . . . . 999 . . . . 80 . . . . . . . . 200 560 50 . . . . . . . . . . Parts Sabotaged . | . . . . . . . . . . . . . . . . . . . . . . . . . . . . . . . . . Parts Stolen 2 | . . . . . . . . . . . . . . . . . . . . . . 2 . . . . . . . . . . Parts Stripped . | . . . . . . . . . . . . . . . . . . . . . . . . . . . . . . . . . Power Chain Reactions 2 | . . . . . . . . . . . . . . 1 . . . . . . . 1 . . . . . . . . . . Alert | -11 -10 -10 -10 -9 -8 -7 -7 -7 -6 -6 -6 -6 -6 -5 -5 -5 -5 -5 -5 -4 -4 -4 -4 -3 -3 -3 -3 -2 -2 -1 -1 -1 ------- Run | Yrd Mat Min Exi Min Mat Fac Low Dat Pro Fac Low Low Zio Pro Fac Ext Cet Arc Hub Fac Upp Upp War Pro Res Qua Sec Res Tes Acc Com Ac0 Maximum Alert Level 5 | . . . . . 1 . . . . 1 . . . . 1 2 2 1 4 4 . . . . 2 2 5 5 5 5 5 . Low Security (%) 51 | 100 100 100 . 100 84 100 . . . 60 . . . . 99 62 . 82 3 . . . . . 32 . 33 . . . . . Level 1 19 | . . . . . 15 . . . . 39 . . . . . 20 58 17 23 2 . . . . 6 95 51 . . . . . Level 2 10 | . . . . . . . . . . . . . . . . 16 41 . 22 70 . . . . 61 4 . . . . . . Level 3 5 | . . . . . . . . . . . . . . . . . . . 36 18 . . . . . . . 78 54 41 4 . Level 4 2 | . . . . . . . . . . . . . . . . . . . 13 8 . . . . . . . 12 13 22 2 . Level 5 7 | . . . . . . . . . . . . . . . . . . . . . . . . . . . . . . . 86 . High Security . | . . . . . . . . . . . . . . . . . . . . . . . . . . . . . . . 6 . Max Security 2 | . . . . . . . . . . . . . . . . . . . . . . . . . . . 15 8 32 36 . . Peak Influence 2239 | 5 75 30 . 147 237 177 . . . 248 . . . . 202 481 473 314 1125 1213 . . . . 539 414 1792 1662 1687 1627 2239 . Initial 1100 | . . 25 . . 43 85 . . . . . . . . 40 93 259 144 . 533 . . . . . 256 194 1100 1100 1100 1100 . Average 282 | . 21 2 . 57 106 77 . . . 134 . . . . 46 180 387 74 665 583 . . . . 325 303 474 1118 1266 1277 1508 . Influence Increases 19304 | 5 95 40 . 350 917 488 . . 185 673 70 30 . 295 474 923 384 310 1831 1316 152 222 797 30 764 524 756 77 150 185 3760 3501 Destroy 0b10 Robot/C 7800 | . 60 . . 220 500 300 . . 160 260 60 20 . 200 260 400 160 80 580 540 80 140 740 20 540 360 460 20 . 80 1560 . Destroy 0b10 Robot/NC 755 | 5 5 10 . 40 110 40 . . 15 40 . . . 30 10 30 10 35 65 120 5 . . 10 20 25 20 10 . . 100 . Destroy Leader 1220 | . 10 . . 40 130 74 . . 10 74 10 10 . 20 42 44 . . 158 132 10 20 . . 92 54 54 2 . 20 214 . Allied During Kill 2179 | . . . . 8 . . . . . . . . . 45 26 408 170 115 444 112 57 62 42 . . . . 12 . 4 674 . Successful Hack 203 | . 5 . . . 23 16 . . . 67 . . . . 16 14 . . . 26 . . . . 24 . 4 . . . 8 . Disable Machine 1230 | . . . . . 105 15 . . . 105 . . . . 75 . . 60 165 240 . . . . 30 60 135 15 45 . 135 45 Anti-Garrison Action 50 | . . . . . . . . . . . . . . . . . . . . . . . . . . . . . . . 50 . Destroy Structure 5417 | . . . . 27 49 13 . . . 97 . . . . 30 12 44 20 404 146 . . . . 28 10 8 18 45 36 974 3456 Partial Spotted 75 | . . . . . . . . . . . . . . . 15 . . . . . . . . . . . . . 15 15 30 . Lose Combat Pursuer 375 | . 15 30 . 15 . 30 . . . 30 . . . . . 15 . . 15 . . . 15 . 30 15 75 . 45 30 15 . Influence Decreases 19135 | 5 30 105 . 238 841 583 45 48 185 477 266 30 . 230 349 649 487 671 742 1196 628 590 553 639 307 635 598 894 800 875 1379 4060 Entered New Map 10191 | . . 40 . . 69 103 35 48 . . 73 . . . 25 97 205 217 . 556 448 140 365 609 . 201 152 784 710 675 579 4060 Time Decay 6996 | 5 30 65 . 238 592 470 10 . 185 477 183 30 . 160 304 452 222 394 404 530 180 380 188 30 287 434 446 70 90 80 60 . Lost Part 100 | . . . . . 30 10 . . . . . . . 10 . . . . 20 10 . . . . 20 . . . . . . . Lost Ally 1698 | . . . . . . . . . . . 10 . . 60 20 100 60 60 318 100 . 70 . . . . . 40 . 120 740 . Purge Threat 150 | . . . . . 150 . . . . . . . . . . . . . . . . . . . . . . . . . . . Squads Dispatched 89 | . 1 . . 1 2 8 . . . 6 . . . . 5 . . . 11 4 . . . . 8 4 16 8 7 6 2 . Investigation 9 | . 1 . . . 2 3 . . . 1 . . . . . . . . . . . . . . . . . . . . 2 . Extermination 24 | . . . . . . 4 . . . 4 . . . . 3 . . . 2 3 . . . . 2 3 2 . 1 . . . Reinforcement 17 | . . . . 1 . 1 . . . 1 . . . . 2 . . . 5 . . . . . 3 . 2 2 . . . . Assault 32 | . . . . . . . . . . . . . . . . . . . 1 1 . . . . . . 12 6 6 6 . . Garrison 7 | . . . . . . . . . . . . . . . . . . . 3 . . . . . 3 1 . . . . . . Intercept . | . . . . . . . . . . . . . . . . . . . . . . . . . . . . . . . . . Searches Triggered . | . . . . . . . . . . . . . . . . . . . . . . . . . . . . . . . . . Construction Impeded 2 | . . . . 1 . . . . . . . . . . . . . . 1 . . . . . . . . . . . . . Haulers Reinforced 5 | . . . . . . . . . . . . . . . 1 . . . 2 . . . . . 1 . 1 . . . . . Active Scanning Responses . | . . . . . . . . . . . . . . . . . . . . . . . . . . . . . . . . . Cargo Convoy Interrupts . | . . . . . . . . . . . . . . . . . . . . . . . . . . . . . . . . . Stealth | -11 -10 -10 -10 -9 -8 -7 -7 -7 -6 -6 -6 -6 -6 -5 -5 -5 -5 -5 -5 -4 -4 -4 -4 -3 -3 -3 -3 -2 -2 -1 -1 -1 --------- Run | Yrd Mat Min Exi Min Mat Fac Low Dat Pro Fac Low Low Zio Pro Fac Ext Cet Arc Hub Fac Upp Upp War Pro Res Qua Sec Res Tes Acc Com Ac0 Distress Signals 65 | . . . . 1 3 . . . . 4 . . . 15 . . 2 . 3 1 . . . . 2 3 2 1 1 1 26 . Communications Jammed 5 | . . . . . . . . . . . . . . . . 1 . . . 4 . . . . . . . . . . . . Distress Signals 3 | . . . . . . . . . . . . . . . . 1 . . . 2 . . . . . . . . . . . . Times Spotted 532 | . 5 2 14 9 43 18 . 4 7 23 9 1 . 5 13 21 10 18 34 30 8 6 55 1 34 26 35 9 13 1 31 47 Peak Tracking Total 14 | . 5 2 9 4 4 5 . 2 5 5 4 1 . 4 4 4 5 2 6 5 8 4 11 1 10 5 6 9 7 2 12 14 Tactical Retreats 23 | . 1 1 5 1 . 2 . . . 1 . . . . . 1 . . 1 . . . 1 . 1 1 2 . 1 2 1 1 Traps | -11 -10 -10 -10 -9 -8 -7 -7 -7 -6 -6 -6 -6 -6 -5 -5 -5 -5 -5 -5 -4 -4 -4 -4 -3 -3 -3 -3 -2 -2 -1 -1 -1 ------- Run | Yrd Mat Min Exi Min Mat Fac Low Dat Pro Fac Low Low Zio Pro Fac Ext Cet Arc Hub Fac Upp Upp War Pro Res Qua Sec Res Tes Acc Com Ac0 Traps Triggered 15 | . . . . . 1 1 . . . . . . . . 1 2 . . 1 1 . . . . 4 1 . . . . 3 . Indirectly . | . . . . . . . . . . . . . . . . . . . . . . . . . . . . . . . . . Trap Hack Attempts . | . . . . . . . . . . . . . . . . . . . . . . . . . . . . . . . . . Triggered . | . . . . . . . . . . . . . . . . . . . . . . . . . . . . . . . . . Disarmed . | . . . . . . . . . . . . . . . . . . . . . . . . . . . . . . . . . Reprogrammed . | . . . . . . . . . . . . . . . . . . . . . . . . . . . . . . . . . Reused . | . . . . . . . . . . . . . . . . . . . . . . . . . . . . . . . . . Traps Extracted . | . . . . . . . . . . . . . . . . . . . . . . . . . . . . . . . . . Installed . | . . . . . . . . . . . . . . . . . . . . . . . . . . . . . . . . . Triggered . | . . . . . . . . . . . . . . . . . . . . . . . . . . . . . . . . . Machines | -11 -10 -10 -10 -9 -8 -7 -7 -7 -6 -6 -6 -6 -6 -5 -5 -5 -5 -5 -5 -4 -4 -4 -4 -3 -3 -3 -3 -2 -2 -1 -1 -1 ---------- Run | Yrd Mat Min Exi Min Mat Fac Low Dat Pro Fac Low Low Zio Pro Fac Ext Cet Arc Hub Fac Upp Upp War Pro Res Qua Sec Res Tes Acc Com Ac0 Machines Disabled 111 | . . . 16 . 7 1 . 1 . 7 2 . . . 5 2 . 4 11 16 1 . 2 . 2 4 11 1 4 . 11 3 Max in Single Turn 7 | . . . 2 . 1 1 . 1 . 1 1 . . . 1 1 . 1 6 7 1 . 2 . 2 1 1 1 1 . 2 1 Garrison Access 2 | . . . . . . . . . . . . . . . . . . . . 1 . . . . . 1 . . . . . . Phase Generator 1 | . . . . . . . . . . . . . . . . . . . . . . . . . . . . . . . 1 . Network Hub 2 | . . . . . . . . . . . . . . . . . . . 2 . . . . . . . . . . . . . Machines Repaired . | . . . . . . . . . . . . . . . . . . . . . . . . . . . . . . . . . Machines Dismantled . | . . . . . . . . . . . . . . . . . . . . . . . . . . . . . . . . . Machines Sabotaged . | . . . . . . . . . . . . . . . . . . . . . . . . . . . . . . . . . Overloaded Fab Kills . | . . . . . . . . . . . . . . . . . . . . . . . . . . . . . . . . . Hacking | -11 -10 -10 -10 -9 -8 -7 -7 -7 -6 -6 -6 -6 -6 -5 -5 -5 -5 -5 -5 -4 -4 -4 -4 -3 -3 -3 -3 -2 -2 -1 -1 -1 --------- Run | Yrd Mat Min Exi Min Mat Fac Low Dat Pro Fac Low Low Zio Pro Fac Ext Cet Arc Hub Fac Upp Upp War Pro Res Qua Sec Res Tes Acc Com Ac0 Machines Accessed 63 | . 1 1 2 . 10 5 . 3 . 11 . . . . 8 6 . . . 6 . . 1 . 1 2 3 . . . 2 1 Terminals 25 | . 1 . . . 7 1 . . . 4 . . . . 1 6 . . . . . . . . . . 3 . . . 2 . Fabricators 6 | . . . . . . 1 . . . 1 . . . . 2 . . . . 2 . . . . . . . . . . . . Repair Stations 7 | . . . . . 1 1 . . . 3 . . . . 1 . . . . 1 . . . . . . . . . . . . Recycling Units 4 | . . . . . 1 . . . . 1 . . . . 2 . . . . . . . . . . . . . . . . . Scanalyzers 9 | . . . . . 1 2 . . . 2 . . . . 1 . . . . 1 . . . . 1 1 . . . . . . Garrison Access 4 | . . . . . . . . . . . . . . . 1 . . . . 2 . . . . . 1 . . . . . . Total Hacks 191 | . 2 1 2 . 48 14 . 24 . 31 . . . . 16 8 . . . 16 . . 1 . 1 3 6 . . . 14 4 Successful 97 | . 1 1 2 . 26 5 . 24 . 11 . . . . 8 3 . . . 4 . . 1 . 1 2 3 . . . 1 4 Failed 92 | . 1 . . . 21 9 . . . 19 . . . . 8 5 . . . 12 . . . . . 1 3 . . . 13 . Catastrophic 16 | . . . . . 3 3 . . . 2 . . . . 2 . . . . 4 . . . . . . . . . . 2 . Database Lockouts 2 | . . . . . 1 . . . . 1 . . . . . . . . . . . . . . . . . . . . . . Manual 170 | . . . 1 . 24 5 . . . 7 . . . . 9 17 1 . 18 48 . . 2 . 12 8 3 9 6 . . . Terminals 73 | . 2 . . . 29 3 . . . 9 . . . . 2 8 . . . . . . . . . . 6 . . . 14 . Fabricators 16 | . . . . . . 3 . . . 3 . . . . 4 . . . . 6 . . . . . . . . . . . . Repair Stations 23 | . . . . . 4 1 . . . 11 . . . . 4 . . . . 3 . . . . . . . . . . . . Recycling Units 11 | . . . . . 5 . . . . 3 . . . . 3 . . . . . . . . . . . . . . . . . Scanalyzers 28 | . . . . . 10 7 . . . 5 . . . . 2 . . . . 2 . . . . 1 1 . . . . . . Garrison Access 8 | . . . . . . . . . . . . . . . 1 . . . . 5 . . . . . 2 . . . . . . Terminal Hacks 52 | . 1 1 2 . 10 . . 24 . 1 . . . . 1 3 . . . . . . 1 . . . 3 . . . 1 4 Record 7 | . . . 1 . . . . 6 . . . . . . . . . . . . . . . . . . . . . . . . Part Schematic 10 | . . . . . 1 . . 9 . . . . . . . . . . . . . . . . . . . . . . . . Robot Schematic 6 | . . . . . . . . 6 . . . . . . . . . . . . . . . . . . . . . . . . Robot Analysis 1 | . . . . . 1 . . . . . . . . . . . . . . . . . . . . . . . . . . . Prototype ID Bank 4 | . . . . . 1 . . 3 . . . . . . . . . . . . . . . . . . . . . . . . Open Door 9 | . . 1 . . . . . . . . . . . . 1 3 . . . . . . 1 . . . 3 . . . . . Terminal Index 1 | . 1 . . . . . . . . . . . . . . . . . . . . . . . . . . . . . . . Alert Level 1 | . . . . . 1 . . . . . . . . . . . . . . . . . . . . . . . . . . . Unreport Threat 1 | . . . . . 1 . . . . . . . . . . . . . . . . . . . . . . . . . . . Locate Traps 2 | . . . . . 2 . . . . . . . . . . . . . . . . . . . . . . . . . . . Hauler Manifests 1 | . . . . . 1 . . . . . . . . . . . . . . . . . . . . . . . . . . . Registered Components 1 | . . . . . . . . . . 1 . . . . . . . . . . . . . . . . . . . . . . Zone Layout 2 | . . . . . 2 . . . . . . . . . . . . . . . . . . . . . . . . . . . Proto ID Catalog 1 | . . . 1 . . . . . . . . . . . . . . . . . . . . . . . . . . . . . Disengage Seal 1 | . . . . . . . . . . . . . . . . . . . . . . . . . . . . . . . 1 . Gate Test 138-A 1 | . . . . . . . . . . . . . . . . . . . . . . . . . . . . . . . . 1 Gate Test 138-B 1 | . . . . . . . . . . . . . . . . . . . . . . . . . . . . . . . . 1 Gate Test 138-C 2 | . . . . . . . . . . . . . . . . . . . . . . . . . . . . . . . . 2 Fabricator Hacks 5 | . . . . . . 1 . . . 1 . . . . 1 . . . . 2 . . . . . . . . . . . . Load Schematic 3 | . . . . . . 1 . . . 1 . . . . 1 . . . . . . . . . . . . . . . . . Build 2 | . . . . . . . . . . . . . . . . . . . . 2 . . . . . . . . . . . . Repair Station Hacks 13 | . . . . . 3 . . . . 5 . . . . 4 . . . . 1 . . . . . . . . . . . . Scan Component 8 | . . . . . 2 . . . . 3 . . . . 2 . . . . 1 . . . . . . . . . . . . Repair 5 | . . . . . 1 . . . . 2 . . . . 2 . . . . . . . . . . . . . . . . . Recycling Unit Hacks 1 | . . . . . . . . . . . . . . . 1 . . . . . . . . . . . . . . . . . Retrieve Components 1 | . . . . . . . . . . . . . . . 1 . . . . . . . . . . . . . . . . . Scanalyzer 16 | . . . . . 8 4 . . . 2 . . . . . . . . . . . . . . 1 1 . . . . . . Insert Component 7 | . . . . . 2 3 . . . 1 . . . . . . . . . . . . . . . 1 . . . . . . Analyze 7 | . . . . . 6 1 . . . . . . . . . . . . . . . . . . . . . . . . . . Retrieve Study 2 | . . . . . . . . . . 1 . . . . . . . . . . . . . . 1 . . . . . . . Garrison Access Hacks 2 | . . . . . . . . . . . . . . . . . . . . 1 . . . . . 1 . . . . . . Seal Access 2 | . . . . . . . . . . . . . . . . . . . . 1 . . . . . 1 . . . . . . Unauthorized Hacks 8 | . . . . . 5 . . . . 2 . . . . 1 . . . . . . . . . . . . . . . . . Terminals 7 | . . . . . 5 . . . . 2 . . . . . . . . . . . . . . . . . . . . . . Track 1 | . . . . . 1 . . . . . . . . . . . . . . . . . . . . . . . . . . . Botnet 5 | . . . . . 3 . . . . 2 . . . . . . . . . . . . . . . . . . . . . . Operators 1 | . . . . . 1 . . . . . . . . . . . . . . . . . . . . . . . . . . . Fabricators 1 | . . . . . . . . . . . . . . . 1 . . . . . . . . . . . . . . . . . Liberate 1 | . . . . . . . . . . . . . . . 1 . . . . . . . . . . . . . . . . . Repair Stations . | . . . . . . . . . . . . . . . . . . . . . . . . . . . . . . . . . Recycling Units . | . . . . . . . . . . . . . . . . . . . . . . . . . . . . . . . . . Scanalyzers . | . . . . . . . . . . . . . . . . . . . . . . . . . . . . . . . . . Garrison Access . | . . . . . . . . . . . . . . . . . . . . . . . . . . . . . . . . . Data Cores Recovered 4 | . . . . . . . . . . . . . . . . . . . 1 1 . . . . . 1 . . . . 1 . Used . | . . . . . . . . . . . . . . . . . . . . . . . . . . . . . . . . . Hacking Detections 47 | . 1 . . . 10 5 . . . 11 . . . . 7 5 1 . . 5 . . . . . 1 . . . . 1 . Full Trace Events 8 | . 1 . . . 2 3 . . . 1 . . . . . . . . . . . . . . . . . . . . 1 . Feedback Events . | . . . . . . . . . . . . . . . . . . . . . . . . . . . . . . . . . Feedback Blocked . | . . . . . . . . . . . . . . . . . . . . . . . . . . . . . . . . . Robot Schematics Acquired 9 | . . . . . . . . 6 . . . . 3 . . . . . . . . . . . . . . . . . . . Robots Built 2 | . . . . . . . . . . . . . . . . . . . . 2 . . . . . . . . . . . . Authchips . | . . . . . . . . . . . . . . . . . . . . . . . . . . . . . . . . . Time 187 | . . . . . . . . . . . . . . . . . . . . 187 . . . . . . . . . . . . Total Robot Build Rating 14 | . . . . . . . . . . . . . . . . . . . . 14 . . . . . . . . . . . . Part Schematics Acquired 67 | . . . . . 2 1 . 9 . . . . 15 . . 11 . . 10 . . . . . . . 3 . 16 . . . Parts Built 2 | . . . . . . . . . . . . . . . . . . . . 2 . . . . . . . . . . . . Authchips . | . . . . . . . . . . . . . . . . . . . . . . . . . . . . . . . . . Time 69 | . . . . . . . . . . . . . . . . . . . . 69 . . . . . . . . . . . . Total Part Build Rating 18 | . . . . . . . . . . . . . . . . . . . . 18 . . . . . . . . . . . . Part Studies Acquired 2 | . . . . . . . . . . 1 . . . . . . . . . . . . . . 1 . . . . . . . Parts Repaired 5 | . . . . . 1 . . . . 2 . . . . 2 . . . . . . . . . . . . . . . . . Time 338 | . . . . . 38 . . . . 161 . . . . 139 . . . . . . . . . . . . . . . . . Parts Recycled . | . . . . . . . . . . . . . . . . . . . . . . . . . . . . . . . . . Recycled Matter . | . . . . . . . . . . . . . . . . . . . . . . . . . . . . . . . . . Retrieved Matter . | . . . . . . . . . . . . . . . . . . . . . . . . . . . . . . . . . Retrieved Components . | . . . . . . . . . . . . . . . . . . . . . . . . . . . . . . . . . Parts Scanalyzed 3 | . . . . . 2 1 . . . . . . . . . . . . . . . . . . . . . . . . . . Part Schematics Acquired 2 | . . . . . 1 1 . . . . . . . . . . . . . . . . . . . . . . . . . . Parts Damaged 1 | . . . . . . 1 . . . . . . . . . . . . . . . . . . . . . . . . . . Bothacking | -11 -10 -10 -10 -9 -8 -7 -7 -7 -6 -6 -6 -6 -6 -5 -5 -5 -5 -5 -5 -4 -4 -4 -4 -3 -3 -3 -3 -2 -2 -1 -1 -1 ------------ Run | Yrd Mat Min Exi Min Mat Fac Low Dat Pro Fac Low Low Zio Pro Fac Ext Cet Arc Hub Fac Upp Upp War Pro Res Qua Sec Res Tes Acc Com Ac0 Used RIF Installer . | . . . . . . . . . . . . . . . . . . . . . . . . . . . . . . . . . Robots Hacked 13 | . . 4 5 . . . . . . . . . . . . . . . . . . . . . . . . . . . 4 . Non-combat 6 | . . 3 3 . . . . . . . . . . . . . . . . . . . . . . . . . . . . . Combat 7 | . . 1 2 . . . . . . . . . . . . . . . . . . . . . . . . . . . 4 . Robot Hacks Applied 13 | . . 4 5 . . . . . . . . . . . . . . . . . . . . . . . . . . . 4 . parse_system 13 | . . 4 5 . . . . . . . . . . . . . . . . . . . . . . . . . . . 4 . Relay Couplers Released 4 | . . . . . . . . . . . . . . . . . . . 4 . . . . . . . . . . . . . Programmers 4 | . . . . . . . . . . . . . . . . . . . 4 . . . . . . . . . . . . . Fabnet Peak Effective % . | . . . . . . . . . . . . . . . . . . . . . . . . . . . . . . . . . Robots Rewired 11 | . . . . . . . . . . . . . . . . 11 . . . . . . . . . . . . . . . . Allies Hacked . | . . . . . . . . . . . . . . . . . . . . . . . . . . . . . . . . . Hacks Repelled . | . . . . . . . . . . . . . . . . . . . . . . . . . . . . . . . . . Allies | -11 -10 -10 -10 -9 -8 -7 -7 -7 -6 -6 -6 -6 -6 -5 -5 -5 -5 -5 -5 -4 -4 -4 -4 -3 -3 -3 -3 -2 -2 -1 -1 -1 -------- Run | Yrd Mat Min Exi Min Mat Fac Low Dat Pro Fac Low Low Zio Pro Fac Ext Cet Arc Hub Fac Upp Upp War Pro Res Qua Sec Res Tes Acc Com Ac0 Total Allies 155 | . . . . 1 . . . . . . . . 4 . 3 27 5 . 3 13 . . . . . . . 15 . 7 77 . Largest Group 25 | . . . . 1 . . . . . . . . 4 4 3 21 23 21 16 5 3 3 . . . . . 8 . 6 25 . Highest-Rated Group 1808 | . . . . 31 . . . . . . . . 151 151 87 790 1113 926 788 450 295 295 . . . . . 124 . 84 1808 . Highest-Rated Ally 269 | . . . . 31 . . . . . . . . 39 39 29 159 159 96 96 103 103 103 . . . . . 31 . 15 269 . Zionite Dispatches 10 | . . . . . . . . . . . . . . . . 4 . . 1 4 . . . . . . . 1 . . . . Heavy 1 | . . . . . . . . . . . . . . . . . . . . 1 . . . . . . . . . . . . Light 2 | . . . . . . . . . . . . . . . . 1 . . . 1 . . . . . . . . . . . . Fire 3 | . . . . . . . . . . . . . . . . 2 . . 1 . . . . . . . . . . . . . Hacker 3 | . . . . . . . . . . . . . . . . 1 . . . 2 . . . . . . . . . . . . Defense Resupply 1 | . . . . . . . . . . . . . . . . . . . . . . . . . . . . 1 . . . . Total Orders 58 | . . . 21 . . . . . . . 16 7 . . . . 8 2 1 . . 1 . . . . . 2 . . . . STAY 11 | . . . 2 . . . . . . . 1 1 . . . . 4 1 1 . . . . . . . . 1 . . . . ROAM 14 | . . . 8 . . . . . . . 5 . . . . . 1 . . . . . . . . . . . . . . . FOLLOW 6 | . . . . . . . . . . . 2 . . . . . 3 1 . . . . . . . . . . . . . . DROP 1 | . . . . . . . . . . . . . . . . . . . . . . . . . . . . 1 . . . . EXPLORE 7 | . . . 1 . . . . . . . 1 4 . . . . . . . . . 1 . . . . . . . . . . RETURN 19 | . . . 10 . . . . . . . 7 2 . . . . . . . . . . . . . . . . . . . . Ally Attacks 794 | . . . 47 6 . . . . . . . . . 11 21 96 49 23 114 80 2 22 21 . . . . 18 . 28 256 . Total Damage 33036 | . . . 164 106 . . . . . . . . . 350 306 2569 1448 1035 3609 2753 86 679 971 . . . . 183 . 484 18293 . Kills 184 | . . . . 3 . . . . . . . . . 3 1 19 10 5 19 21 2 6 6 . . . . 1 . 4 84 . Allies Corrupted 11 | . . . 1 . . . . . . . . . . . 1 . . . . 1 . . . . . . . . . . 8 . Allies Melted 1 | . . . . . . . . . . . . . . . . . . . . . . . 1 . . . . . . . . . Turrets Deployed 1 | . . . . . . . . . . . . . . . . . . . . . . . 1 . . . . . . . . . Intel | -11 -10 -10 -10 -9 -8 -7 -7 -7 -6 -6 -6 -6 -6 -5 -5 -5 -5 -5 -5 -4 -4 -4 -4 -3 -3 -3 -3 -2 -2 -1 -1 -1 ------- Run | Yrd Mat Min Exi Min Mat Fac Low Dat Pro Fac Low Low Zio Pro Fac Ext Cet Arc Hub Fac Upp Upp War Pro Res Qua Sec Res Tes Acc Com Ac0 Active Infowar (turns) 23403 | 2 125 744 1310 . 1952 1231 29 332 518 1550 1031 478 1376 693 1003 1122 456 1748 753 1380 367 843 1336 490 680 946 904 4 . . . . Optics 313 | . . . . . 312 . . . . . . . . . . . . . . . . . 1 . . . . . . . . . Sensors 20358 | . 1 . . . 1862 1231 29 332 518 1550 1031 478 1376 693 1003 1013 456 1748 753 1311 367 843 1336 490 418 615 904 . . . . . IFF 208 | . . . . . . . . . . 208 . . . . . . . . . . . . . . . . . . . . . . Terrain 1733 | . . . . . . . . . . . . . . . . . . . . . . . . . 602 944 185 2 . . . . Seismic 2240 | 2 125 744 1310 . 59 . . . . . . . . . . . . . . . . . . . . . . . . . . . Jamming 2634 | . . . . . . 1 . . . 684 . . . . 146 660 . . . 1143 . . . . . . . . . . . . ECM 2 | . . . . . . . . . . . . . . . . . . . . . . . . . . . . 2 . . . . Robot Analysis Total 1 | . . . . . 1 . . . . . . . . . . . . . . . . . . . . . . . . . . . Derelict Logs Recovered 9 | . . 2 . 1 . . . . 1 . 1 . 1 1 . . . . . . 2 . . . . . . . . . . . Drone Launches 30 | . . . 20 . . . . . . . 5 3 . . . . . . . . . 2 . . . . . . . . . . Drone Recoveries 24 | . . . 18 . . . . . . . 3 3 . . . . . . . . . . . . . . . . . . . . Zionite Intel Received 21 | . . . . . . . . . . . . . . . 1 1 . . 4 8 . . . . 3 2 . 1 1 . . . Main Access 1 | . . . . . . . . . . . . . . . . . . . . . . . . . 1 . . . . . . . Branch Access 2 | . . . . . . . . . . . . . . . . . . . 1 1 . . . . . . . . . . . . Emergency Access 2 | . . . . . . . . . . . . . . . . . . . . 1 . . . . . 1 . . . . . . Guard Positions 1 | . . . . . . . . . . . . . . . . . . . . . . . . . 1 . . . . . . . Component Stockpiles 2 | . . . . . . . . . . . . . . . 1 . . . . . . . . . 1 . . . . . . . Prototype Stockpiles 1 | . . . . . . . . . . . . . . . . . . . . 1 . . . . . . . . . . . . Component Schematics 1 | . . . . . . . . . . . . . . . . . . . . . . . . . . . . . 1 . . . Prototype Schematics 2 | . . . . . . . . . . . . . . . . 1 . . 1 . . . . . . . . . . . . . Unaware Analyses 1 | . . . . . . . . . . . . . . . . . . . . 1 . . . . . . . . . . . . Trap Installations 2 | . . . . . . . . . . . . . . . . . . . . 1 . . . . . . . 1 . . . . Active Terminals 3 | . . . . . . . . . . . . . . . . . . . 1 1 . . . . . 1 . . . . . . Depthwide Sectors/0 2 | . . . . . . . . . . . . . . . . . . . 1 1 . . . . . . . . . . . . Depthwide Sectors/-1 1 | . . . . . . . . . . . . . . . . . . . . 1 . . . . . . . . . . . . Exploration | -11 -10 -10 -10 -9 -8 -7 -7 -7 -6 -6 -6 -6 -6 -5 -5 -5 -5 -5 -5 -4 -4 -4 -4 -3 -3 -3 -3 -2 -2 -1 -1 -1 ------------- Run | Yrd Mat Min Exi Min Mat Fac Low Dat Pro Fac Low Low Zio Pro Fac Ext Cet Arc Hub Fac Upp Upp War Pro Res Qua Sec Res Tes Acc Com Ac0 Turns Passed 33826 | 67 125 745 5273 732 2405 1398 29 594 670 1617 1041 730 1376 693 1038 1122 468 2080 971 1480 367 881 1336 490 716 1060 1321 155 292 276 1837 441 Spaces Moved 22013 | 57 166 848 1826 194 1201 696 20 266 367 1034 415 352 975 417 663 692 217 154 563 982 303 575 853 385 528 785 1187 251 561 493 3119 868 Core 1100 | 55 166 805 70 . . . . . . . . . . . . . . . . . . . . . . . 4 . . . . . Treads 1862 | . . 43 1756 63 . . . . . . . . . . . . . . . . . . . . . . . . . . . . Legs 18455 | 2 . . . . 783 696 20 266 367 1034 415 352 975 417 663 692 217 154 563 982 303 575 853 385 528 785 1161 240 557 493 3109 868 Wheels 549 | . . . . 131 418 . . . . . . . . . . . . . . . . . . . . . . . . . . . Hover . | . . . . . . . . . . . . . . . . . . . . . . . . . . . . . . . . . Flight . | . . . . . . . . . . . . . . . . . . . . . . . . . . . . . . . . . Fastest Speed 30 | 50 50 50 50 230 132 120 122 120 120 120 120 120 120 120 120 120 120 120 112 110 110 110 102 102 101 101 30 30 30 30 30 30 Average Speed 103 | 52 50 80 232 337 142 125 122 121 120 120 120 120 120 120 120 120 120 120 118 113 110 110 108 102 101 101 75 30 30 30 30 30 Slowest Speed 560 | 120 50 160 560 560 275 130 122 193 120 120 120 120 120 120 122 120 120 120 120 116 110 110 110 102 102 102 101 30 30 30 90 30 Overloaded Moves . | . . . . . . . . . . . . . . . . . . . . . . . . . . . . . . . . . Propulsion Burnouts . | . . . . . . . . . . . . . . . . . . . . . . . . . . . . . . . . . Robots Hopped . | . . . . . . . . . . . . . . . . . . . . . . . . . . . . . . . . . Potential Cave-ins 15 | . . . . . . . . . 3 . . . . . . . . . . 2 . . 1 . 3 . 2 . . . . 4 Cave-ins Triggered 1 | . . . . . . . . . . . . . . . . . . . . . . . . . 1 . . . . . . . Teleports 1 | . . . . . . . . . . . . . . . . . . . . . . . . . . . . . . . 1 . Spacefolds 19 | . . . . . . . . . . . . . . . . . . . . . . . . . . . 10 4 2 . 3 . Exploration Rate (%) 54 | 3 33 97 93 42 72 16 6 81 53 26 86 75 89 51 18 84 56 81 43 32 59 88 69 54 28 87 55 6 57 15 84 57 Regions Visited 32 Branch Regions 23 Pre-discovered Areas 23 | . . 1 1 . . . . 1 1 . . . . . . . . . 9 9 1 . . . . . . . . . . . Known Exits Taken 24 | . 1 . . . 1 1 1 1 1 1 1 1 1 1 1 1 1 1 1 1 1 1 1 1 1 1 1 . . . . . Unknown Exits Taken 8 | 1 . 1 1 1 . . . . . . . . . . . . . . . . . . . . . . . 1 1 1 1 . Scrap Searched 20 | . . 1 . . . . . . 2 . 5 2 . 2 . . . . . . 4 2 . 2 . . . . . . . . Spaces Dug 274 | . . . . 19 15 12 . 6 17 41 . . . . 11 3 10 . 10 13 17 2 6 11 9 3 . 2 12 12 27 16 Terrain Destroyed 2437 | . . . 64 30 48 13 . 12 91 140 71 2 . 33 20 6 17 4 244 41 67 17 158 13 13 3 4 7 18 12 402 887 Melee 87 | . . . . . 15 12 . 6 . 1 . . . . 10 3 10 . 4 1 . . 6 10 6 3 . . . . . . Projectile 1525 | . . . 46 4 5 1 . 4 36 29 . 2 . . 10 3 7 4 47 26 . 10 3 1 7 . 4 7 18 12 352 887 AOE 810 | . . . 13 26 27 . . . 55 110 71 . . 33 . . . . 189 14 67 7 148 . . . . . . . 50 . Terrain Rammed . | . . . . . . . . . . . . . . . . . . . . . . . . . . . . . . . . . Walls Destroyed . | . . . . . . . . . . . . . . . . . . . . . . . . . . . . . . . . . Machines Disabled . | . . . . . . . . . . . . . . . . . . . . . . . . . . . . . . . . . Actions | -11 -10 -10 -10 -9 -8 -7 -7 -7 -6 -6 -6 -6 -6 -5 -5 -5 -5 -5 -5 -4 -4 -4 -4 -3 -3 -3 -3 -2 -2 -1 -1 -1 --------- Run | Yrd Mat Min Exi Min Mat Fac Low Dat Pro Fac Low Low Zio Pro Fac Ext Cet Arc Hub Fac Upp Upp War Pro Res Qua Sec Res Tes Acc Com Ac0 Total 31455 | 75 192 893 2713 240 1701 1117 24 498 524 1269 922 649 1180 561 834 918 363 2013 737 1345 335 824 1221 474 704 1030 1533 309 676 616 3961 1004 Wait 6489 | . 1 8 697 . 232 301 5 97 95 79 476 283 196 107 89 59 66 1819 55 199 21 189 228 34 25 102 146 21 66 111 661 21 Move 21952 | 56 165 847 1825 193 1200 695 19 265 366 1033 414 351 974 416 662 691 216 153 562 981 302 574 852 384 526 784 1174 243 558 492 3111 868 Hop . | . . . . . . . . . . . . . . . . . . . . . . . . . . . . . . . . . Pick Up 271 | 4 5 6 48 6 18 8 . 33 1 11 . . 2 . 6 1 4 . 12 10 . 4 19 7 4 8 24 1 14 3 12 . Fast Attach 129 | 5 2 3 7 1 7 2 . 3 . 3 . . 2 . 8 . 1 4 4 2 2 4 4 . 10 12 13 13 5 . 11 1 Attach 107 | . 2 . . . 15 2 . 5 . 3 . . 1 1 5 . 1 . 3 4 2 6 8 7 9 8 14 2 . 2 6 1 Detach 32 | . 1 . . 1 1 . . 2 . . . . . . 2 . . . . 1 2 4 3 . 7 4 2 1 . . 1 . Swap 428 | . . 3 16 9 35 31 . 11 9 33 14 9 1 7 14 14 19 8 21 37 . 9 17 3 28 35 23 10 4 . 8 . Drop 347 | . 5 8 35 2 33 9 . 35 1 12 . 1 3 1 11 2 6 2 16 13 2 4 26 7 8 10 35 12 19 2 25 2 Fire 1305 | 10 11 11 80 24 86 36 . 20 52 82 18 5 . 29 25 32 24 27 60 93 4 30 58 22 80 61 83 6 10 6 109 111 Melee 246 | . . 6 5 4 70 33 . 27 . 8 . . 1 . 12 3 26 . 4 1 . . 6 10 6 3 17 . . . 4 . Ram 1 | . . 1 . . . . . . . . . . . . . . . . . . . . . . . . . . . . . . Kick 19 | . . . . . 4 . . . . 5 . . . . . 1 . . . 4 . . . . . 3 2 . . . . . Crush . | . . . . . . . . . . . . . . . . . . . . . . . . . . . . . . . . . Escape Stasis 7 | . . . . . . . . . . . . . . . . 1 . . . . . . . . 1 . . . . . 5 . Rewire 122 | . . . . . . . . . . . . . . . . 114 . . . . . . . . . . . . . . 8 . Trap . | . . . . . . . . . . . . . . . . . . . . . . . . . . . . . . . . . Miscellaneous . | . . . . . . . . . . . . . . . . . . . . . . . . . . . . . . . . . Route ------- -11/Scrapyard -10/Materials -10/Mines (discovered 3 exits: *Mat x2 / *Exi) -10/Exiles (discovered 2 exits: [*Min x2]) -9/Mines -8/Materials -7/Factory (discovered 2 exits: *Low x2) -7/Lower Caves -7/Data Miner -6/Proximity Caves -6/Factory -6/Lower Caves -6/Lower Caves (discovered 2 exits: *Fac / *Zio) -6/Zion -5/Proximity Caves -5/Factory (discovered 2 exits: *Upp / *Ext) -5/Extension (discovered 2 exits: *Fac / *Cet) -5/Cetus (discovered 2 exits: *Fac / *Arc) -5/Archives (discovered 3 exits: *Fac / *Hub x2) -5/Hub_04(d) (discovered 2 exits: *Fac x2) -4/Factory (discovered 5 exits: *Res x2 / *Upp x2 / Arm) -4/Upper Caves -4/Upper Caves (discovered 2 exits: *Res / *War) -4/Warlord -3/Proximity Caves -3/Research (discovered 4 exits: *Res x3 / *Qua) -3/Quarantine (discovered 2 exits: *Sec / [*Frg]) -3/Section 7 -2/Research -2/Testing -1/Access -1/Command (discovered 3 exits: [*Sur x2] / *Ac0) -1/Access_0 Subspace History --------- Turn | Location | Event 2 | -11/Scrapyard | Met Revision 17 14 | -11/Scrapyard | Discovered new exit (range 15) 68 | -11/Scrapyard | Entered Materials 188 | -10/Materials | Discovered new exit (range 9) 192 | -10/Materials | Identified exit to Mines 193 | -10/Materials | Entered Mines 240 | -10/Mines | Joined a pair of Derelicts in attacking an 0b10 outpost 267 | -10/Mines | Discovered new exit (range 9) 273 | -10/Mines | Identified exit to Materials 284 | -10/Mines | YI-UF0 nonchalantly dropped a Grenade Launcher on the ground 309 | -10/Mines | Build established: Mutant 359 | -10/Mines | Discovered exit to Materials (range 13) 366 | -10/Mines | Found the Drone Emporium 368 | -10/Mines | Found Prototype Device 368 | -10/Mines | Identified Thief Drone Bay 754 | -10/Mines | Deemed a non-threat by the Exiles lab entrance 755 | -10/Mines | Discovered new exit (range 5) 938 | -10/Mines | Entered Exiles 964 | -10/Exiles | Discovered new exit (range 15) 982 | -10/Exiles | Met 8R-AWN 1005 | -10/Exiles | Met EX-HEX 1055 | -10/Exiles | Met EX-BIN 1122 | -10/Exiles | Met EX-DEC 1172 | -10/Exiles | Learned location of Zion (-6) 1413 | -10/Exiles | Visited The Gauntlet 1646 | -10/Exiles | Aligned with FarCom system 1648 | -10/Exiles | Given EX-Vault access code 2177 | -10/Exiles | Attacked by the Exiles 2274 | -10/Exiles | Found 8R-AWN's Boregun 2324 | -10/Exiles | Found 8R-AWN's Boregun 2483 | -10/Exiles | Destroyed 8R-AWN 2583 | -10/Exiles | Found Exp. Targeting Computer 2881 | -10/Exiles | Opened EX-Vault 3224 | -10/Exiles | Discovered new exit (range 62) 3299 | -10/Exiles | Destroyed EX-BIN 3959 | -10/Exiles | Destroyed EX-DEC 4016 | -10/Exiles | Destroyed EX-HEX 4110 | -10/Exiles | Found Exp. Core Analyzer 4572 | -10/Exiles | Build established: Hauler-Mutant 4719 | -10/Exiles | Found Deploy-a-Sentry 4787 | -10/Exiles | Found System Purifier 5613 | -10/Exiles | Found XL Autogun Array 5626 | -10/Exiles | Found Longsword +1 5638 | -10/Exiles | Found Army-in-a-Box 6211 | -10/Exiles | Stole three prototypes: XL Autogun Array, Longsword +1, Deploy-a-Sentry 6211 | -10/Exiles | Entered Mines 6373 | -9/Mines | Received a Rocket Launcher from a helpful Derelict 6390 | -9/Mines | Assembled infested the area 6664 | -9/Mines | Received a Mining Laser from a helpful Derelict 6703 | -9/Mines | Discovered new exit (range 5) 6851 | -9/Mines | Learned Materials stockpile data 6943 | -9/Mines | Entered Materials 6943 | -8/Materials | Evolved 4 slots: Propulsion x2, Utility x2 8101 | -8/Materials | Discovered new exit (range 19) 8336 | -8/Materials | Central database locked down 8679 | -8/Materials | Repaired Hrd. Medium Armor Plating 8701 | -8/Materials | Build established: Scavenger-Mutant 9347 | -8/Materials | Identified exit to Factory 9348 | -8/Materials | Entered Factory 9348 | -7/Factory | Evolved 2 slots: Propulsion x1, Weapon x1 9648 | -7/Factory | Build established: Skirmisher 9773 | -7/Factory | Discovered new exit (range 6) 9801 | -7/Factory | Identified exit to Lower Caves 10661 | -7/Factory | Discovered exit to Lower Caves (range 5) 10746 | -7/Factory | Entered Lower Caves 10757 | -7/Lower Caves | A Derelict revealed a hidden shortcut to meet someone special 10766 | -7/Lower Caves | Identified exit to Data Miner 10775 | -7/Lower Caves | Entered Data Miner 10785 | -7/Data Miner | Discovered new exit (range 6) 10808 | -7/Data Miner | Met Data Miner 10838 | -7/Data Miner | Learned location of Section 7 (-3) 10838 | -7/Data Miner | Acquired the access code to Warlord's prototype stash 10849 | -7/Data Miner | Received God Mode back door access code from Data Miner 10881 | -7/Data Miner | Data Conduit disabled 11076 | -7/Data Miner | Build established: Mutant 11199 | -7/Data Miner | Found Prototype Device 11199 | -7/Data Miner | Identified Exp. Thermal Shield 11249 | -7/Data Miner | Found Exp. Thermal Shield 11367 | -7/Data Miner | Identified exit to Proximity Caves 11369 | -7/Data Miner | Entered Proximity Caves 11407 | -6/Proximity Caves | Learned location of Extension (-5) 11747 | -6/Proximity Caves | Build established: Scavenger-Skirmisher 12034 | -6/Proximity Caves | Discovered new exit (range 5) 12038 | -6/Proximity Caves | Identified exit to Factory 12039 | -6/Proximity Caves | Entered Factory 12039 | -6/Factory | Evolved 2 slots: Power x1, Utility x1 12885 | -6/Factory | Repaired Broken Adv. Myomer Leg 13057 | -6/Factory | Discovered new exit (range 14) 13071 | -6/Factory | Identified exit to Lower Caves 13243 | -6/Factory | Build established: Scavenger-Tank 13269 | -6/Factory | Repaired Adv. Myomer Leg? 13574 | -6/Factory | Central database locked down 13656 | -6/Factory | Entered Lower Caves 14114 | -6/Lower Caves | Discovered new exit (range 72) 14188 | -6/Lower Caves | Build established: Scavenger-Skirmisher 14303 | -6/Lower Caves | Encountered a Warlord checkpoint 14413 | -6/Lower Caves | Identified exit to Lower Caves 14470 | -6/Lower Caves | Encountered an infested base 14568 | -6/Lower Caves | Destroyed 11 combat bots 14580 | -6/Lower Caves | Found DCF Scrap (14 items) 14633 | -6/Lower Caves | Learned Factory emergency access door positions 14697 | -6/Lower Caves | Entered another Lower Caves area 14697 | -6/Lower Caves | Accompanied by 1 ally 14734 | -6/Lower Caves | Discovered new exit (range 30) 14951 | -6/Lower Caves | Identified exit to Factory 15417 | -6/Lower Caves | Discovered new exit (range 10) 15425 | -6/Lower Caves | Identified exit to Zion 15427 | -6/Lower Caves | Entered Zion 15475 | -6/Zion | System corruption cleaned by Quarantine Array 15738 | -6/Zion | Discovered new exit (range 12) 15894 | -6/Zion | Learned Factory emergency access door positions 16043 | -6/Zion | Given A8's code to call for help 16380 | -6/Zion | Learned Factory security intel 16416 | -6/Zion | Acquired unknown access codes intercepted by a Zionite 16512 | -6/Zion | Met Imprinter 16531 | -6/Zion | Imprinted 16533 | -6/Zion | Declared Zion's savior 16735 | -6/Zion | Identified exit to Proximity Caves 16803 | -6/Zion | Entered Proximity Caves 16803 | -5/Proximity Caves | Accompanied by 4 allies 17085 | -5/Proximity Caves | Received a Behemoth hack from an annoying Tinkerer 17280 | -5/Proximity Caves | Learned location of 1 exit from Proximity Caves 17496 | -5/Proximity Caves | Entered Factory 17496 | -5/Factory | Evolved 2 slots: Utility x2 17836 | -5/Factory | Found Prototype Launcher 17836 | -5/Factory | Identified Mni. Smartbomb Launcher 17839 | -5/Factory | Found Mni. Smartbomb Launcher 17847 | -5/Factory | Retrieved Zion intel report: Component Stockpiles 17872 | -5/Factory | Repaired Enh. Flexi-carbon Leg? 17984 | -5/Factory | Repaired Force Field? 18334 | -5/Factory | Discovered new exit (range 6) 18347 | -5/Factory | Discovered new exit (range 5) 18350 | -5/Factory | Identified exit to Upper Caves 18533 | -5/Factory | Identified exit to Extension 18534 | -5/Factory | Entered Extension 18598 | -5/Extension | Rescued a captive Derelict 18599 | -5/Extension | Rescued a captive Derelict 18698 | -5/Extension | Zion Light squad teleported in 18703 | -5/Extension | Zion Fire squad teleported in 18755 | -5/Extension | Retrieved Zion intel report: Prototype Schematics 18923 | -5/Extension | Build established: Scavenger-Tank 19153 | -5/Extension | Spotted B-75 Beast 19163 | -5/Extension | Allies destroyed B-75 Beast 19168 | -5/Extension | Spotted B-75 Beast 19178 | -5/Extension | Allies destroyed B-75 Beast 19188 | -5/Extension | Found Prototype Protection 19188 | -5/Extension | Identified Zio. Weapon Casing 19318 | -5/Extension | Zion Hacker squad teleported in 19330 | -5/Extension | Lost 4 allies 19339 | -5/Extension | Rescued a captive Derelict 19449 | -5/Extension | Zion Fire squad teleported in 19548 | -5/Extension | Rescued A7 19592 | -5/Extension | Discovered new exit (range 10) 19593 | -5/Extension | Discovered new exit (range 6) 19607 | -5/Extension | Identified exit to Cetus 19610 | -5/Extension | Identified exit to Factory 19656 | -5/Extension | Entered Cetus 19656 | -5/Cetus | Accompanied by 21 allies (A7) 19661 | -5/Cetus | Acquired a Cetus Manufacturing Module code from A7 19688 | -5/Cetus | Spotted Cetus Guard 19688 | -5/Cetus | Spotted Cetus Guard 19690 | -5/Cetus | Spotted Cetus Guard 19690 | -5/Cetus | Spotted Cetus Guard 19692 | -5/Cetus | Allies destroyed Cetus Guard 19697 | -5/Cetus | Allies destroyed Cetus Guard 19697 | -5/Cetus | Allies destroyed Cetus Guard 19701 | -5/Cetus | Allies destroyed Cetus Guard 19765 | -5/Cetus | Started Cetus Manufacturing Module 19779 | -5/Cetus | Discovered new exit (range 16) 19790 | -5/Cetus | Manufactured an Enhanced Grunt 19811 | -5/Cetus | Build established: Commander-Tank 19813 | -5/Cetus | Spotted Cetus Guard 19813 | -5/Cetus | Spotted Cetus Guard 19815 | -5/Cetus | Manufactured an Enhanced Grunt 19820 | -5/Cetus | Spotted Cetus Guard 19821 | -5/Cetus | Spotted Cetus Guard 19823 | -5/Cetus | Allies destroyed Cetus Guard 19831 | -5/Cetus | Allies destroyed Cetus Guard 19837 | -5/Cetus | Allies destroyed Cetus Guard 19838 | -5/Cetus | Allies destroyed Cetus Guard 19840 | -5/Cetus | Manufactured an Enhanced Grunt 19846 | -5/Cetus | Discovered exit to Factory (range 15) 19852 | -5/Cetus | Scared off Revision 17 19855 | -5/Cetus | System corruption reached 10% 19865 | -5/Cetus | Manufactured an Enhanced Grunt 19890 | -5/Cetus | Manufactured an Enhanced Grunt 20008 | -5/Cetus | Found Prototype Protection 20008 | -5/Cetus | Identified Med. Regenerative Plating 20024 | -5/Cetus | Murdered A7 20028 | -5/Cetus | Extracted ID and sensor layout for unrecognized location from A7's data core 20057 | -5/Cetus | Identified exit to Archives 20124 | -5/Cetus | Entered Archives 20124 | -5/Archives | Accompanied by 21 allies 20188 | -5/Archives | Lost 4 allies 20199 | -5/Archives | Discovered new exit (range 16) 20228 | -5/Archives | Discovered exit to Factory (range 16) 20797 | -5/Archives | Build established: Commander-Skirmisher 21067 | -5/Archives | Discovered new exit (range 16) 22170 | -5/Archives | Identified exit to Hub_04(d) 22204 | -5/Archives | Entered Hub_04(d) 22204 | -5/Hub_04(d) | Accompanied by 16 allies 22207 | -5/Hub_04(d) | Garrison activated, responded to threat 22269 | -5/Hub_04(d) | Lost 5 allies 22269 | -5/Hub_04(d) | Retrieved Zion intel report: Active Terminals 22282 | -5/Hub_04(d) | Retrieved Zion intel report: Depthwide Sectors/-5 22303 | -5/Hub_04(d) | Retrieved Zion intel report: Branch Access 22361 | -5/Hub_04(d) | Discovered exit to Factory (range 10) 22560 | -5/Hub_04(d) | Discovered exit to Factory (range 10) 22598 | -5/Hub_04(d) | Retrieved Zion intel report: Prototype Schematics 22599 | -5/Hub_04(d) | Zion Fire squad teleported in 22654 | -5/Hub_04(d) | Lost 6 allies 22898 | -5/Hub_04(d) | Network Hub disabled 22908 | -5/Hub_04(d) | Spotted Lightning 22909 | -5/Hub_04(d) | Spotted Lightning 22910 | -5/Hub_04(d) | Spotted Lightning 22949 | -5/Hub_04(d) | Destroyed Lightning 22971 | -5/Hub_04(d) | Destroyed Lightning 23005 | -5/Hub_04(d) | Found Prototype Device 23005 | -5/Hub_04(d) | Identified Exp. EM Shield 23015 | -5/Hub_04(d) | Found Exp. Targeting Computer 23018 | -5/Hub_04(d) | Found Prototype Device 23018 | -5/Hub_04(d) | Identified Exp. Phase Shifter 23024 | -5/Hub_04(d) | Network Hub disabled 23039 | -5/Hub_04(d) | Found Exp. Targeting Computer 23040 | -5/Hub_04(d) | Destroyed Lightning 23052 | -5/Hub_04(d) | Found Exp. Targeting Computer 23104 | -5/Hub_04(d) | First assault squad dispatched 23105 | -5/Hub_04(d) | Found Prototype Energy Cannon 23125 | -5/Hub_04(d) | Identified EMDS 23175 | -5/Hub_04(d) | Entered Factory 23175 | -4/Factory | Evolved 2 slots: Utility x1, Weapon x1 23280 | -4/Factory | Fabricated Quantum Reactor (x2) 23303 | -4/Factory | Build established: Scavenger-Skirmisher 23309 | -4/Factory | Found Quantum Capacitor 23473 | -4/Factory | Retrieved Zion intel report: Active Terminals 23563 | -4/Factory | Retrieved Zion intel report: Depthwide Sectors/-4 23623 | -4/Factory | Discovered new exit (range 15) 23636 | -4/Factory | Identified exit to Research 23711 | -4/Factory | Retrieved Zion intel report: Depthwide Sectors/-3 23749 | -4/Factory | Retrieved Zion intel report: Prototype Stockpiles 23774 | -4/Factory | Retrieved Zion intel report: Emergency Access 23786 | -4/Factory | Discovered exit to Research (range 7) 23972 | -4/Factory | Retrieved Zion intel report: Branch Access 23972 | -4/Factory | Identified exit to Upper Caves 23972 | -4/Factory | Identified exit to Armory 23973 | -4/Factory | Zion Light squad teleported in 23994 | -4/Factory | Zion Hacker squad teleported in 24206 | -4/Factory | Zion Hacker squad teleported in 24227 | -4/Factory | Lost 5 allies 24259 | -4/Factory | Spotted B-86 Titan 24300 | -4/Factory | Destroyed B-86 Titan 24380 | -4/Factory | Zion Heavy squad teleported in 24425 | -4/Factory | First assault squad dispatched 24511 | -4/Factory | Fabricated H-77 Assassin? 24593 | -4/Factory | Retrieved Zion intel report: Trap Installations 24600 | -4/Factory | Retrieved Zion intel report: Unaware Analyses 24604 | -4/Factory | Enhanced Grunt warped into view, answering call for help 24605 | -4/Factory | Enhanced Grunt warped into view, answering call for help 24655 | -4/Factory | Entered Upper Caves 24655 | -4/Upper Caves | Accompanied by 3 allies 24659 | -4/Upper Caves | Encountered an infested base 24682 | -4/Upper Caves | Destroyed 8 combat bots 24695 | -4/Upper Caves | Learned location of Testing (-2) 24920 | -4/Upper Caves | Learned Research security intel 24999 | -4/Upper Caves | Discovered new exit (range 16) 25015 | -4/Upper Caves | Identified exit to Upper Caves 25022 | -4/Upper Caves | Entered another Upper Caves area 25022 | -4/Upper Caves | Accompanied by 3 allies 25095 | -4/Upper Caves | Discovered exit to Research (range 12) 25631 | -4/Upper Caves | Encountered a Master Thief 25632 | -4/Upper Caves | XL Autogun Array stolen by Master Thief 25641 | -4/Upper Caves | Encountered a Master Thief 25646 | -4/Upper Caves | Encountered a Master Thief 25647 | -4/Upper Caves | Encountered a Master Thief 25649 | -4/Upper Caves | Deploy-a-Sentry stolen by Master Thief 25864 | -4/Upper Caves | Discovered new exit (range 13) 25893 | -4/Upper Caves | Identified exit to Warlord 25903 | -4/Upper Caves | Entered Warlord 25940 | -4/Warlord | System corruption cleaned by Quarantine Array 26264 | -4/Warlord | Opened Warlord's prototype stash 26270 | -4/Warlord | Found Prototype Processor 26270 | -4/Warlord | Identified Exp. Armor Integrity Analyzer 26273 | -4/Warlord | Found Prototype Device 26273 | -4/Warlord | Identified Thermal Barrier 26279 | -4/Warlord | Found Exp. Phase Shifter 26282 | -4/Warlord | Found Prototype Reactor 26290 | -4/Warlord | Found Prototype Hackware 26438 | -4/Warlord | Visited the Vortex Lab 26443 | -4/Warlord | Warlord's base attacked by MAIN.C 26446 | -4/Warlord | Found Prototype Energy Cannon 26448 | -4/Warlord | Found Prototype Energy Cannon 26450 | -4/Warlord | Found Prototype Launcher 26514 | -4/Warlord | Identified Vortex Driver (x2) 26515 | -4/Warlord | Identified Vortex Catalyst Activator 26540 | -4/Warlord | DAS Turret deployed 26598 | -4/Warlord | Spotted B-86 Titan 26623 | -4/Warlord | Allies destroyed B-86 Titan 26624 | -4/Warlord | Spotted B-90 Cyclops 26627 | -4/Warlord | Allies destroyed B-90 Cyclops 26793 | -4/Warlord | Warlord forces counterattacked 26816 | -4/Warlord | Spotted Striker 26836 | -4/Warlord | Spotted Executioner 26844 | -4/Warlord | Destroyed Executioner 26860 | -4/Warlord | Found Prototype Device 26860 | -4/Warlord | Identified Adv. Kinecellerator 26865 | -4/Warlord | Destroyed 8 combat bots 26889 | -4/Warlord | Found Exp. Targeting Computer 26901 | -4/Warlord | Destroyed Executioner 26951 | -4/Warlord | Destroyed VZ-SE4(g) 26951 | -4/Warlord | Destroyed XB-IWL(g) 26953 | -4/Warlord | Destroyed Striker 26959 | -4/Warlord | Spotted Striker 26977 | -4/Warlord | Murdered 5 allies 26980 | -4/Warlord | Destroyed 9 combat bots 26983 | -4/Warlord | Lost 18 allies 27118 | -4/Warlord | Warlord base infiltrated, sounded retreat 27167 | -4/Warlord | Spotted Striker 27168 | -4/Warlord | Spotted Striker 27204 | -4/Warlord | Destroyed Executioner 27227 | -4/Warlord | Discovered new exit (range 13) 27238 | -4/Warlord | Identified exit to Proximity Caves 27239 | -4/Warlord | Entered Proximity Caves 27491 | -3/Proximity Caves | Attracted the attention of an 0b10 checkpoint 27595 | -3/Proximity Caves | Build established: Scavenger-Gunner 27729 | -3/Proximity Caves | Entered Research 27729 | -3/Research | Evolved 2 slots: Propulsion x1, Utility x1 27802 | -3/Research | Garrison activated, responded to threat 27947 | -3/Research | Retrieved Zion intel report: Main Access 27947 | -3/Research | Identified exit to Research 27977 | -3/Research | Garrison activated, responded to threat 28000 | -3/Research | Build established: Scavenger-Skirmisher 28033 | -3/Research | Destroyed 13 combat bots 28122 | -3/Research | Retrieved Zion intel report: Guard Positions 28171 | -3/Research | Retrieved Zion intel report: Component Stockpiles 28309 | -3/Research | Discovered new exit (range 24) 28414 | -3/Research | Garrison activated, responded to threat 28433 | -3/Research | Crushed by falling debris 28442 | -3/Research | Identified exit to Quarantine 28445 | -3/Research | Entered Quarantine 28492 | -3/Quarantine | Garrison activated, responded to threat 28556 | -3/Quarantine | Found Prototype Device 28556 | -3/Quarantine | Identified Exp. Shield Generator 28738 | -3/Quarantine | Identified System Mapper 28770 | -3/Quarantine | Identified Vortex Chain Reactor 28866 | -3/Quarantine | Found Alien Artifact 28910 | -3/Quarantine | Retrieved Zion intel report: Emergency Access 29066 | -3/Quarantine | System corruption reached 10% 29125 | -3/Quarantine | Destroyed 7 combat bots 29147 | -3/Quarantine | Discovered exit to Research (range 10) 29287 | -3/Quarantine | Retrieved Zion intel report: Active Terminals 29337 | -3/Quarantine | Identified Core Reset Matrix 29337 | -3/Quarantine | Used Core Reset Matrix 29341 | -3/Quarantine | Detected hypermatrix surge 29341 | -3/Quarantine | Sensed 8 artifacts in vicinity 29341 | -3/Quarantine | Found Hpw. Transdimensional Reconstructor 29345 | -3/Quarantine | Found Transdimensional Reconstructor 29427 | -3/Quarantine | Spotted Fortress 29496 | -3/Quarantine | Discovered new exit (range 5) 29496 | -3/Quarantine | Discovered new exit (range 6) 29500 | -3/Quarantine | Identified exit to Section 7 29505 | -3/Quarantine | Entered Section 7 29505 | -3/Section 7 | Spotted S7 Guard 29506 | -3/Section 7 | Detected hypermatrix surge 29506 | -3/Section 7 | Sensed 22 artifacts in vicinity 29531 | -3/Section 7 | Found Integrated Dissipator 29531 | -3/Section 7 | Installed Integrated Dissipator, increased core heat dissipation (+20) 29671 | -3/Section 7 | Discovered exit to Research (range 6) 29717 | -3/Section 7 | Found Spacefold Activator 29798 | -3/Section 7 | Spotted Executioner 29798 | -3/Section 7 | Spotted Executioner 29831 | -3/Section 7 | Destroyed Executioner 29837 | -3/Section 7 | Destroyed Executioner 29970 | -3/Section 7 | Spotted Striker 30064 | -3/Section 7 | Build established: Scavenger-Gunner 30219 | -3/Section 7 | Spotted B-99 Colossus 30255 | -3/Section 7 | Found Core Expander 30255 | -3/Section 7 | Installed Core Expander, added new Utility slot 30257 | -3/Section 7 | Found Core Expander 30257 | -3/Section 7 | Installed Core Expander, added new Utility slot 30260 | -3/Section 7 | Found Core Expander 30260 | -3/Section 7 | Installed Core Expander, added new Utility slot 30303 | -3/Section 7 | Found LRC Matter Compressor 30303 | -3/Section 7 | Installed LRC Matter Compressor, increased matter storage capacity (+125) 30305 | -3/Section 7 | Found LRC Matter Compressor 30305 | -3/Section 7 | Installed LRC Matter Compressor, increased matter storage capacity (+125) 30345 | -3/Section 7 | Found Integrated Dissipator 30345 | -3/Section 7 | Installed Integrated Dissipator, increased core heat dissipation (+20) 30491 | -3/Section 7 | Released all parts (19) 30493 | -3/Section 7 | Integrated with Sigix Exoskeleton 30530 | -3/Section 7 | Spotted Executioner 30548 | -3/Section 7 | Found Matter Drive 30620 | -3/Section 7 | Spotted Striker 30620 | -3/Section 7 | Spotted Striker 30626 | -3/Section 7 | Destroyed Striker 30626 | -3/Section 7 | Destroyed Striker 30634 | -3/Section 7 | Found Sigix Shearcannon 30637 | -3/Section 7 | Spotted Striker 30659 | -3/Section 7 | Spotted Executioner 30719 | -3/Section 7 | Destroyed Striker 30745 | -3/Section 7 | Build established: Alien-Sigix 30821 | -3/Section 7 | Found Integrity Redistributor 30826 | -3/Section 7 | Entered Research 30826 | -2/Research | Evolved 2 slots: Utility x2 30831 | -2/Research | Emitted hypermatrix ping 30836 | -2/Research | Assembled emerged from beneath the floor 30868 | -2/Research | Zion Defense Resupply teleported in 30872 | -2/Research | Found Prototype Device 30872 | -2/Research | Identified Adv. EM Shield 30874 | -2/Research | Found Prototype Device 30874 | -2/Research | Identified Exp. Thermal Shield 30914 | -2/Research | Retrieved Zion intel report: Trap Installations 30933 | -2/Research | Discovered new exit (range 18) 30954 | -2/Research | Assembled emerged from beneath the floor 30981 | -2/Research | Entered Testing 31042 | -2/Testing | Found Prototype Device 31044 | -2/Testing | Identified Exp. Hardlight Generator 31088 | -2/Testing | Found System Mapper 31097 | -2/Testing | Retrieved Zion intel report: Component Schematics 31108 | -2/Testing | Found Prototype Device 31108 | -2/Testing | Identified AEGIS Remote Shield 31121 | -2/Testing | Found Prototype Device 31124 | -2/Testing | Found Prototype Hackware 31155 | -2/Testing | Identified Exp. System Shield 31163 | -2/Testing | Identified Exp. Focal Shield 31191 | -2/Testing | Discovered new exit (range 16) 31273 | -2/Testing | Entered Access 31273 | -1/Access | Evolved 2 slots: Utility x2 31278 | -1/Access | Emitted hypermatrix ping 31283 | -1/Access | Assembled emerged from beneath the floor 31421 | -1/Access | Found Exp. Core Analyzer 31501 | -1/Access | Discovered new exit (range 15) 31549 | -1/Access | Entered Command 31554 | -1/Command | Emitted hypermatrix ping 31559 | -1/Command | Assembled emerged from beneath the floor 31632 | -1/Command | Lost 3 allies 31642 | -1/Command | Disengaged cave seal 31642 | -1/Command | Zionites emerged from the dark tunnel 31679 | -1/Command | High security lockdown imminent 31684 | -1/Command | Assembled emerged from beneath the floor 31702 | -1/Command | Assembled emerged from beneath the floor 31706 | -1/Command | Spotted M Guard 31706 | -1/Command | Spotted M Guard 31715 | -1/Command | Spotted Combat Programmer 31715 | -1/Command | Spotted Combat Programmer 31724 | -1/Command | Destroyed Combat Programmer 31737 | -1/Command | Destroyed Combat Programmer 31754 | -1/Command | Lost 13 allies 31755 | -1/Command | Destroyed M Guard 31755 | -1/Command | Destroyed M Guard 31755 | -1/Command | All MAIN.C guards destroyed 31759 | -1/Command | High security lockdown engaged 31775 | -1/Command | Met MAIN.C 31775 | -1/Command | 0b10 Conduit disabled 31796 | -1/Command | MAIN.C's shell transforms into a squad of autonomous robots 31796 | -1/Command | Destroyed MAIN.C Shell 31796 | -1/Command | Spotted M Shell/Atk 31796 | -1/Command | Spotted M Shell/Atk 31797 | -1/Command | Spotted M Shell/Def 31797 | -1/Command | Spotted M Shell/Atk 31797 | -1/Command | Spotted M Shell/Def 31797 | -1/Command | MAIN.C activated Command garrisons 31798 | -1/Command | Spotted M Shell/Def 31799 | -1/Command | Spotted M Shell/Atk 31799 | -1/Command | Spotted M Shell/Def 31800 | -1/Command | Destroyed M Shell/Def 31810 | -1/Command | Sigix Exoskeleton integrity reduced to 80% 31830 | -1/Command | Destroyed M Shell/Atk 31832 | -1/Command | Destroyed MAIN.C 31834 | -1/Command | Discovered new exit (range 55) 31834 | -1/Command | Discovered new exit (range 66) 31834 | -1/Command | Extracted map data and part IDs from MAIN.C's data core 31834 | -1/Command | Destroyed M Shell/Def 31834 | -1/Command | Destroyed M Shell/Def 31836 | -1/Command | Destroyed M Shell/Atk 31839 | -1/Command | Destroyed M Shell/Def 31840 | -1/Command | Destroyed M Shell/Atk 31861 | -1/Command | Destroyed 7 combat bots 31874 | -1/Command | Lost 5 allies 31914 | -1/Command | Spotted B-99 Colossus 31918 | -1/Command | Destroyed B-99 Colossus 32042 | -1/Command | Found Exp. System Purifier 32175 | -1/Command | Found Gamma Refractor 32595 | -1/Command | Found Exp. Weapon Cycler 32700 | -1/Command | Assembled emerged from beneath the floor 32785 | -1/Command | Assembled emerged from beneath the floor 32886 | -1/Command | Phase Generator disabled 32929 | -1/Command | Assembled emerged from beneath the floor 33028 | -1/Command | Assembled emerged from beneath the floor 33344 | -1/Command | Found Exp. Targeting Computer 33375 | -1/Command | Warped through subspace to slip node 33375 | -1/Command | Discovered new exit (range 5) 33386 | -1/Command | Entered Access_0 33387 | -1/Access_0 | Sensed 3 artifacts in vicinity 33387 | -1/Access_0 | Met Architect 33410 | -1/Access_0 | Architect warped through subspace 33411 | -1/Access_0 | Destroyed A8 33449 | -1/Access_0 | Subspace Access Node disabled 33453 | -1/Access_0 | A6 warped into view 33465 | -1/Access_0 | Destroyed A6 33465 | -1/Access_0 | Core integrity fell below 50% 33468 | -1/Access_0 | Architect warped through subspace 33485 | -1/Access_0 | Subspace Access Node disabled 33514 | -1/Access_0 | Architect warped through subspace 33546 | -1/Access_0 | Architect warped through subspace 33557 | -1/Access_0 | Subspace Access Node disabled 33566 | -1/Access_0 | Architect warped through subspace 33576 | -1/Access_0 | A5 warped into view 33605 | -1/Access_0 | Destroyed 7 combat bots 33630 | -1/Access_0 | Sigix Exoskeleton integrity reduced to 60% 33641 | -1/Access_0 | Architect warped through subspace 33646 | -1/Access_0 | Destroyed A2 33647 | -1/Access_0 | Extracted Singularity Gate Test 138-C access codes from A2's data core 33672 | -1/Access_0 | Architect warped through subspace 33678 | -1/Access_0 | Destroyed A5 33714 | -1/Access_0 | Architect warped through subspace 33714 | -1/Access_0 | Destroyed 10 combat bots 33734 | -1/Access_0 | A4 warped into view 33749 | -1/Access_0 | Destroyed A4 33756 | -1/Access_0 | Architect warped through subspace 33819 | -1/Access_0 | Architect warped through subspace 33827 | -1/Access_0 | Started Test 138-B, establishing a local singularity 33827 | -1/Access_0 | Started Test 138-C, cascade imminent 33827 | *** | Destroyed Tau Ceti IV! Last Messages --------------- Architect warps through subspace. 33827_ Connecting with Gate Controls... 33827_ Current location identified: Access_0 33827_ Connecting with Gate Controls... >>Gate Test 138-A Running Singularity Gate diagnostics... All systems nominal. >>Gate Test 138-B Preparing Singularity Gate activation... Stable singularity established. >>Gate Test 138-C Initiating Test 138-C... Warning: Experimental formulas incomplete. Potential effects include instability. Repeat command to confirm test. >>Gate Test 138-C Initiating Test 138-C... Applying incomplete calculations.... INSTABILITY DETECTED, CASCADE IMMINENT. [Achievement: Stardust] Map ----- +----------------------------------------------------+ | ??????????????????????????????????????????????? | | ??????????????????????????????????????????????? | | ??????????????????????????????????????????????? | | ??????????????????????????????????????????????? | | ??????????????????????????????????#???????????? | | ?????????????????????????????###########??????? | | ?????????????????????????? ###############???? | | ????????????????????????? ###############??? | | ????????????????????? ? ################? | | ????????????????# ### ############# | | ?????????????#### ###### ############ | | ????????????##### ######## # ############ | | ??????????####### ######## # ############ | | ?????????###""""" """""### # ############ | | ????????#####"""" """"#### # ######## | | ???????######" "#### # ######## | | ???????#####"" ""### #### ######## | | ??????######"" ""### # ## ######## | | ?????########" "### # ######### | | ?????########" "## ########## | | ?????########" "## ############ | | ????#########" "## ############ | | ????#########" "## ## ########### | | ????########"" ""###### ############ | | ???#########"" ""###### "########### | | ???##########" X "###### ############ | | ???##########"""" A""##### ############# | | ???#########""""" """""### "############ | | ???############## ####### ############# | | ??############### ###### ############# | | ???############## ######" #" ############ | | ???############## ### ## ############ | | ??############### ### ## ############ | | ???############## ### "##### ############ | | ???############## ### #####" ############ | | ???############## ### ###### ############ | | ??############### ### "##### ############ | | ???############## ### #####" ############ | | ???############## ## #####" ############ | | ???############## "" ## "########### | | ???########### ## " ##" ############ | | ???########### " # " "############## | | ????############# " """ ############### | | ????############# "" "" ############### | | ????################" "" ################# | | ?????############# " "" ################## | | ????################" " ################### | | ?????###############" " ##################### | | ?????###############" " ##################### | | ?????################ " ################# | +----------------------------------------------------+ Best States ------------- Heat Dissipation 167 Energy Generation 69 Energy Capacity 1400 Matter Stores 550 Matter Capacity 550 Sight Range 20 Robot Scan Range 16 Terrain Scan Range 24 Terrain Scan Density 210 Jamming Range 16 Armor Coverage 450 Resistance: KI 50 Resistance: TH 50 Resistance: EX 50 Resistance: EM 50 Resistance: I 50 Resistance: S 50 Resistance: P 50 Core Shielding 20 Power Shielding 66 Weapon Shielding 100 Weapon Cycling 30 Phase Shifting 20 Evasion (%) 103 Targeting Accuracy 12 Core Analysis 12 Recoil Reduction 6 Matter Filtering 50 Energy Filtering 50 Kinecelleration 50 Offensive Hacking 20 Defensive Hacking 12 Authchip Count 1 Item Schematics ----------------- Cld. Impulse Thruster | -3/Section 7 | Archive Spectral Analyzer | -3/Section 7 | Archive Exp. Matter Compressor | -3/Section 7 | Archive Imp. Gyrokinetic Inverter | -2/Testing | Z-intel Energy Filter | -2/Testing | Z-intel Gravmag Array | -2/Testing | Z-intel Lrg. Storage Unit | -2/Testing | Z-intel Lgt. Particle Reactor | -2/Testing | Z-intel Seismic Detector | -2/Testing | Z-intel Hardcell Cannon | -2/Testing | Z-intel Linear Accelerator | -2/Testing | Z-intel Core Analyzer | -2/Testing | Z-intel Adv. Thermal Shield | -2/Testing | Z-intel Imp. Weapon Shielding | -2/Testing | Z-intel Enh. Nova Cannon | -2/Testing | Z-intel Hcp. Storage Unit | -2/Testing | Z-intel Imp. Fusion Compressor | -2/Testing | Z-intel Imp. Point Defense System | -2/Testing | Z-intel Imp. Thermal Shield | -2/Testing | Z-intel Robot Schematics ------------------ None Fabricated ------------ Quantum Reactor | x2 | -4/Factory | Preloaded H-77 Assassin | x2 | -4/Factory | Preloaded Repaired ---------- Hrd. Medium Armor Plating | 18% | -8/Materials Adv. Myomer Leg | 26% | -6/Factory | Broken Adv. Myomer Leg | 42% | -6/Factory Enh. Flexi-carbon Leg | 11% | -5/Factory Force Field | 30% | -5/Factory Studied --------- None Alien Tech Used ----------------- Core Reset Matrix Integrated Dissipator Spacefold Activator Core Expander LRC Matter Compressor Sigix Exoskeleton Sigix Sheargun Matter Drive Sigix Shearcannon High-powered Transdimensional Reconstructor Achievements -------------- Alien Attack Stardust Challenges ------------ None Game ------ Seed LongswordActiveMediator Manual? 0 Play Time 07:26:52 Cumulative 675.5 hours Start 2026.03.28 @ 16:31:52 End 2026.03.30 @ 00:03:10 Sessions 12 Manual Loads 0 Difficulty Rogue Special Mode None Game No. 367 Rogue 367 Adventurer 0 Explorer 0 Win Type 5 Total 29 Types 14/1/6/2/1/1/1/2/1/0 Lore% 92 Gallery% 86 Achievement% 78 Wizard Run 0 Options --------- Layout 1 ASCII 0 Keyboard 0 Movement Numpad Keybinds 0 Fullscreen 2 Font 24/Smallcaps Map View 50x40 Zoom Use 0% Tactical HUD 1 Map Filters NONE Filters NONE Steam 1 RUN: e49bdc13-548a-4b36-be33-84755b56ed3a